Workbook

Sheet Form (hidden)
D1: Commercial Invoice | G1: [ORIGINAL] | X1: Draft/Bill Of Exchange | AD1: ملا حظات يجب مراعاتها عند مراجعة فاتورة الاعتماد البنكي
M2: Commercial Invoice | AD2: 1 | AE2: قيمة الفاتورة الصافيه هي التي سيتم تحويلها من البنك الى حساب المستفيد
B3: Bank: | C3: SABB | D3: Invoice No: | E3: 1651 | F3: Invoice Date: | G3: 43466 | Q3: Original | V3: Drawn Under | AD3: 2 | AE3: اي يتم خصم الدفعات المقدمة وحجز الاختبارات من فاتورة الاعتماد البنكي قبل التوقيع عليها
B4: LC# | C4: 12345678910 | D4: LC Dated: | E4: 43466 | F4: LC Expiry Date: | G4: 43466 | J4: Bill to / Applicant | V4: DC NO: | W4: =C4 -> 12345678910 | AD4: 3 | AE4: مراجعة رقم الاعتماد البنكي | AF4: Documentary Credit Number
A5: To | B5: Al Arrab Contracting Co. Ltd. | F5: Delivery Note No: | G5: =E48 -> 11651 | V5: Dated | W5: =E49 -> 43466 | AD5: 4 | AE5: مراجعة تاريخ انتهاء صلاحية الاعتماد البنكي | AF5: Expiry Date
B6: Riyadh 11633, P.O. Box 91313, KSA. | E6: Payment Terms: | F6: 60 Days from the Date Of " Invoice " | J6: M/S : Al Arrab Contracting Co. Ltd. | Q6: Invoice # | R6: 1 | V6: Issued By | AD6: 5 | AE6: مراجعة اسم مقدم طلب فتح الاعتماد البنكي | AF6: Applicant
B7: Tel:+966112109480 Fax:+966112107939 | J7: P.O.Box 91313, Riyadh 11633,KSA. | Q7: Invoice date | R7: 2020-03-03 | AD7: 6 | AE7: مراجعة اسم المستفيد | AF7: Beneficiary
J8: Tel: 011-210-9480 / Fax: 011-210-7939 | V8: Our Bank Account No: | AD8: 7 | AE8: مراجعة قيمة الاعتماد البنكي المفتوح
B9: Sr. | C9: Description Of Goods And/or Services | D9: Unit | E9: Unit Price | F9: Quantity | G9: Amount (SAR) | P9: Beneficiary Advising bank's reference. | V9: IBAN: | AD9: 8 | AE9: مراجعة موعد استحقاق الفاتورة | AF9: 30 Days After Shipment Date
B10: 1 | E10: 5 | F10: 5 | G10: =TableForm[[#This Row],[Unit Price]]*TableForm[[#This Row],[Quantity]] -> 25 | J10: Drawn Under LC # | L10: DIBWPM299370 | O10: Bank/Branch | P10: Bank Al-Jazira | V10: Exchange of amount | W10: =TableForm[[#Totals],[Amount (SAR)]] -> 607.5 | AD10: 9 | AE10: مراجعة طريقة الشحن | AF10: Partial Shipments Are Allowed /Or Not
B11: 2 | G11: =TableForm[[#This Row],[Unit Price]]*TableForm[[#This Row],[Quantity]] -> 0 | J11: LC issuing bank's Name: | L11: SABB | O11: A/C# | P11: 012-8950-0826-3001 | V11: Riyadh | AD11: 10 | AE11: مراجعة مكان التسليم للبضاعة | AF11: Project Site
B12: 3 | E12: 5 | F12: 115 | G12: =TableForm[[#This Row],[Unit Price]]*TableForm[[#This Row],[Quantity]] -> 575 | J12: LC issuing date: | L12: 2020-02-20 | O12: IBAN# | P12: SA32-6010-0012-8950-0826-3001 | V12: Date: | W12: =G3 -> 43466 | X12: Pay This Sole Bill Of Exchange | AD12: 11 | AE12: مراجعة وصف البضاعة | AF12: Description Of Goods / Cables
B13: 4 | G13: =TableForm[[#This Row],[Unit Price]]*TableForm[[#This Row],[Quantity]] -> 0 | J13: LC expiry date: | L13: 2020-08-19 | O13: SWIFT CODE# | P13: BJAZSAJE | AD13: 12 | AE13: مراجعة المستندات التي يجب ان توقع (عدد الفواتير + عدد سندات الاستلام ) | AF13: Documents Required Signed
B14: 5 | G14: =TableForm[[#This Row],[Unit Price]]*TableForm[[#This Row],[Quantity]] -> 0 | V14: At Sight | AD14: 13 | AE14: مراجعة اسماء الذين يحق لهم التوقيع على الفواتير والاستلامات | AF14: Applicant's Authorized
B15: 6 | G15: =TableForm[[#This Row],[Unit Price]]*TableForm[[#This Row],[Quantity]] -> 0 | J15: Drafts at: | L15: 30 Days from Invoice date | O15: Payment Terms: | Q15: Payment after 30 days | AD15: 14 | AE15: مراجعة تحميل مصروفات فتح الاعتماد
B16: 7 | E16: 5 | F16: 1.5 | G16: =TableForm[[#This Row],[Unit Price]]*TableForm[[#This Row],[Quantity]] -> 7.5 | J16: Delivery Date: | L16: 2020-03-03 | Q16: from the Invoice Date | V16: To Order Of
B17: Total | G17: =SUBTOTAL(109,TableForm[Amount (SAR)]) -> 607.5
B18: Amount In Words | J18: Ser. # | K18: Description of Goods and/or Services | O18: Qty | P18: Unit | R18: Total Amount SAR | V18: Ourselves
J19: 1 | K19: Subcontract Works | O19: 1 | P19: Lump sum | R19: 232873.36
J20: Two Hundred Thirty Two Thousand Eight Hundred Seventy Three Riyals and Thirty Six Halalas | R20: =R19 -> 232873.36 | V20: The Sum Of SAR | W20: =B19 -> 0
B21: CPT Applicant's Project Site, KSA, | V21: Value Received Against
B22: Supply And Installation Of MEP Works | J22: The Undersigned certify | N22: Confirming that subcontracting works have been
J23: The invoice true & correct | N23: Completed Successfully.
B24: We Hereby Certify The Contents To Be True And Correct. | J24: Beneficiary authorized Signatory | N24: Countersigned by applicant's Representatives for
B25: Dispatch From Beneficiary Warehouse. | N25: Al Arrab Contracting Co. Ltd.
B27: Beneficiary: | E27: Applicant: | N27: Group "A"
E28: =B5 -> Al Arrab Contracting Co. Ltd. | N28: Mr. Marc Cordahi
E29: =B6 -> Riyadh 11633, P.O. Box 91313, KSA. | N29: Or
E30: =B7 -> Tel:+966112109480 Fax:+966112107939 | N30: Mr. Mohammed Sami Alkandelgy
B32: Authorized Signatory | E32: Authorized Signatory | N32: Group "B"
N33: Mr. Aqeel Ahmed
B34: Mr. | E34: Mr. | N34: Or
B35: Date: | E35: Date: | N35: Mr. Ahmed Elhamy
E37: Mr. | N37: Group "C"
E38: Date: | N38: Mr. Syed Nadeemuddin Ahmed
N39: Or
B40: Stamp | E40: Stamp | N40: Mr. Aneesh Paul
N41: Or
N42: Mr. Prashant Purushothaman
N43: Or
N44: Mr. Ahmed Hussain Abou Shebeka
D46: Delivery Note | G46: =G1 -> [ORIGINAL]
B48: Bank: | C48: =C3 -> SABB | D48: Delivery Note No: | E48: 11651 | F48: Delivery Note Date: | G48: =G3 -> 43466 | J48: Stamp | N48: Stamp
B49: LC# | C49: =C4 -> 12345678910 | D49: LC Dated: | E49: =E4 -> 43466 | F49: LC Expiry Date: | G49: =G4 -> 43466
B50: =B5 -> Al Arrab Contracting Co. Ltd. | F50: Invoice No: | G50: =E3 -> 1651
B51: =B6 -> Riyadh 11633, P.O. Box 91313, KSA. | E51: Payment Terms: | F51: =F6 -> 60 Days from the Date Of " Invoice "
B52: =B7 -> Tel:+966112109480 Fax:+966112107939 | J52: Date: | N52: Date:
B54: Sr. | C54: Description Of Goods And/or Services | D54: Unit | E54: Quantity
B55: =$B10 -> 1 | C55: =$C10 -> 0 | D55: =$D10 -> 0 | E55: =$F10 -> 5
B56: 2 | C56: 0 | D56: 0 | E56: 0
B57: 3 | C57: 0 | D57: 0 | E57: 115 | M57: Work Completion
B58: 4 | C58: 0 | D58: 0 | E58: 0 | Q58: =Q3 -> Original
B59: 5 | C59: 0 | D59: 0 | E59: 0 | J59: Bill to / Applicant
B60: 6 | C60: 0 | D60: 0 | E60: 0
B61: 7 | C61: 0 | D61: 0 | E61: 1.5 | J61: M/S : Al Arrab Contracting Co. Ltd. | P61: Work Completion # | R61: 1
B62: Total | E62: =SUBTOTAL(109,Table46[Quantity]) -> 121.5 | J62: P.O.Box 91313, Riyadh 11633,KSA. | P62: Work Completion Date | R62: 2020-03-03
J63: Tel: 011-210-9480 / Fax: 011-210-7939
B64: =B21 -> CPT Applicant's Project Site, KSA, | P64: Beneficiary Advising bank's reference.
B65: =B22 -> Supply And Installation Of MEP Works | J65: Drawn Under LC # | L65: DIBWPM299370 | O65: Bank/Branch | P65: Bank Al-Jazira
J66: LC issuing bank's Name: | L66: SABB | O66: A/C# | P66: 012-8950-0826-3001
J67: LC issuing date: | L67: 2020-02-20 | O67: IBAN# | P67: SA32-6010-0012-8950-0826-3001
B68: We Hereby Certify The Contents To Be True And Correct. | E68: Evidencing Of Delivery On: | G68: =G3 -> 43466 | J68: LC expiry date: | L68: 2020-08-19 | O68: SWIFT CODE# | P68: BJAZSAJE
B69: =B25 -> Dispatch From Beneficiary Warehouse. | E69: At Applicant's Site In Good Order And Condition.
J70: Drafts at: | L70: 30 Days from Invoice date | O70: Payment Terms: | Q70: Payment after 30 days
J71: Invoice # | L71: 1 | Q71: from the Invoice Date
B72: Beneficiary: | E72: Applicant: | J72: Invoice date | L72: 2020-03-03
B73: =B28 -> 0 | E73: =B5 -> Al Arrab Contracting Co. Ltd.
B74: =B29 -> 0 | E74: =B6 -> Riyadh 11633, P.O. Box 91313, KSA. | J74: Ser. # | K74: Description of Goods and/or Services | O74: Qty | P74: Unit
B75: =B30 -> 0 | E75: =B7 -> Tel:+966112109480 Fax:+966112107939 | J75: 1 | K75: Subcontract Works | O75: 1 | P75: Lump sum
B77: Authorized Signatory | E77: Authorized Signatory | J77: The Undersigned certify | N77: Confirming that subcontracting works have been
J78: The invoice true & correct | N78: Completed Successfully.
B79: Mr. | C79: =C34 -> 0 | E79: Mr. | J79: Beneficiary authorized Signatory | N79: Countersigned by applicant's Representatives for
B80: Date: | C80: =C35 -> 0 | E80: Date: | N80: Al Arrab Contracting Co. Ltd.
E82: Mr. | N82: Group "A"
E83: Date: | N83: Mr. Marc Cordahi
N84: Or
B85: Stamp | E85: Stamp | N85: Mr. Mohammed Sami Alkandelgy
N87: Group "B"
N88: Mr. Aqeel Ahmed
N89: Or
N90: Mr. Ahmed Elhamy
N92: Group "C"
N93: Mr. Syed Nadeemuddin Ahmed
N94: Or
N95: Mr. Aneesh Paul
N96: Or
N97: Mr. Prashant Purushothaman
N98: Or
N99: Mr. Ahmed Hussain Abou Shebeka
J103: Stamp | N103: Stamp
J107: Date: | N107: Date:
M112: Commercial Invoice
Q113: Original
J114: Bill to / Applicant
J116: M/S : Al -Arrab Contracting Co. Ltd. | Q116: Invoice # | R116: 1
J117: P.O.Box 91313, Riyadh 11633,KSA. | Q117: Invoice date | R117: 2020-03-03
J118: Tel:+966-11-2109480 - Fax:+966-11-2107939
P119: Beneficiary Advising bank's reference.
J120: Drawn Under LC # | L120: DIBWPM299370 | O120: Bank/Branch | P120: Bank Al-Jazira/Khaled Ibn El Waleed,Jeddah
J121: LC issuing bank's Name: | M121: SABB | O121: A/C# | Q121: 012-8950-0826-3001
J122: LC issuing date: | L122: 2020-02-20 | O122: IBAN# | P122: SA32-6010-0012-8950-0826-3001
J123: LC expiry date: | L123: 2020-08-19 | O123: SWIFT CODE# | Q123: BJAZSAJE
J125: Delivery to: | L125: Dispatch from: | P125: Description of goods and/or services
J126: Drafts at:
P127: Delivery terms: applicant's "CPT"
J128: Payment Terms: | L128: Payment after 30 days | P128: warehouse in or site in
L129: from the Invoice Date | P129: PO# | R129: date: / /
J131: Ser. # | K131: Description of Goods and/or Services | O131: Qty | P131: Unit | Q131: Unit price SAR | R131: Total Amount SAR
J132: 1 | R132: =O132*Q132 -> 0
J133: 2 | R133: =O133*Q133 -> 0
J134: 3 | R134: 0
J135: 4 | R135: 0
J136: 5 | R136: 0
J137: 6 | R137: 0
J138: 7 | R138: 0
J139: 8 | R139: 0
J140: 9 | R140: 0
J141: 10 | R141: 0
J142: 11 | R142: 0
J143: 12 | R143: 0
K144: -----------Nothing follows----------- | O144: =SUM(O132:O143) -> 0 | R144: =SUM(R132:R143) -> 0
O145: 0 | P145: Less Advance | R145: =R144*-O145 -> 0
O146: 0.05 | P146: Add VAT | R146: =(R144+R145)*O146 -> 0
O147: 0 | P147: Less Retention | R147: =R144*-O147 -> 0
R148: =SUM(R144:R147) -> 0
J150: The Undersigned certify | N150: Confirming Receipt of goods in good order and condition
J151: The invoice true & correct | N151: Countersigned by applicant's Representatives for
N152: Al -Arrab Contracting Co. Ltd.
J153: Beneficiary authorized Signatory
N154: Mr.
J156: Stamp | N156: and / or | P156: Stamp
N158: Mr.
J162: Date: | Q162: Date:
M167: Work Completion
Q168: =Q113 -> Original
J169: Bill to / Applicant
J171: M/S : Al -Arrab Contracting Co. Ltd. | Q171: Delivery Note #
J172: P.O.Box 91313, Riyadh 11633,KSA. | Q172: Delivery Note date
J173: Tel:0112109525/0112107556-Fax:0112109531
P174: Beneficiary Advising bank's reference.
J175: Drawn Under LC # | P175: Bank/Branch
J176: LC issuing bank's Name: | P176: A/C#
J177: LC issuing date: | P177: IBAN#
J178: LC expiry date: | P178: SWIFT CODE#
J180: Delivery to: | L180: Dispatch from: | P180: Description of goods and/or services
J181: Drafts at:
P182: Delivery terms: applicant's "CPT"
J183: Payment Terms: | P183: warehouse in or site in
P184: PO# | R184: date: / /
J186: ser. # | K186: Description of Goods and/or Services | O186: Qty | P186: Unit
J187: 1
J188: 2
J189: 3
J190: 4
J191: 5
J192: 6
J193: 7
J194: 8
J195: 9
J196: 10
J197: 11
J198: 12
K199: -----------Nothing follows----------- | O199: =SUM(O187:O198) -> 0
J201: The Undersigned certify | N201: Confirming Receipt of goods in good order and condition
J202: The invoice true & correct | N202: Countersigned by applicant's Representatives
N203: Al -Arrab Contracting Co. Ltd.
J204: Beneficiary authorized Signatory
N205: Mr.
J207: Stamp | N207: and / or | P207: Stamp
N209: Mr.
J213: Date: | Q213: Date:

Sheet Full_Report
B1: AL Salam Contracting Co. ltd. | D1: SCC - Amaer Project | E1: SABB | F1: Bank | G1: Project code | H1: HART | I1: P.O. Box | J1: 12345 | K1: CR#سجل تجاري | L1: 1234567890 | M1: C.C.# رقم العضويـة | N1: Tel: | O1: 011-1234567 | P1: 010-1234569
B2: شركة السلام للمقاولات المحدودة | D2: مشروع العمائر | E2: 12345678912345678912345 | F2: I Ban | G2: Cost code | H2: 1234 | I2: Postal Code | J2: 67890 | K2: VAT#ض. قيمة مضافة | L2: 123456789101112 | M2: 12345 | N2: Fax: | O2: 011-1234568 | P2: 010-1234570
B3: Sr | C3: Vendor | D3: System | E3: المورد | F3: Vendor Type | G3: LC invoices Value | H3: LC invoices Date | I3: LC Value | J3: LC Balance | K3: Date OF Issue | L3: LC Expiry Date | M3: DC NO: | N3: Bank | O3: Status | P3: Facility from
B4: 1 | C4: Abs Factory | D4: 165646 | E4: مصنع ابس | F4: Supplier | G4: 875941.46 | H4: 2019-07-27 | I4: 1905502.52 | J4: =TableFull_Report[[#This Row],[LC Value]]-TableFull_Report[[#This Row],[LC invoices Value]] -> 1029561.06 | K4: 2019-02-28 | L4: 2019-08-28 | M4: LC5481349721 | N4: BBC | O4: =IF(TableFull_Report[[#This Row],[LC Expiry Date]]<TODAY(),"CLOSED","OPEN") -> CLOSED | P4: A/C No.900
B5: 1 | C5: Abs Factory | D5: 165646 | E5: مصنع ابس | F5: Supplier | G5: 716625.64 | H5: 2020-05-08 | I5: 1434615.84 | J5: =TableFull_Report[[#This Row],[LC Value]]-TableFull_Report[[#This Row],[LC invoices Value]] -> 717990.2 | K5: 2019-12-08 | L5: 2020-06-08 | M5: LC5481349721 | N5: BBC | O5: =IF(TableFull_Report[[#This Row],[LC Expiry Date]]<TODAY(),"CLOSED","OPEN") -> OPEN | P5: A/C No.900
B6: 2 | C6: International Services | D6: 154783 | E6: شركة للخدمات العالمية | F6: Subcontractor | G6: 0 | H6: 2018-07-21 | I6: 4000000 | J6: =TableFull_Report[[#This Row],[LC Value]]-TableFull_Report[[#This Row],[LC invoices Value]] -> 4000000 | K6: 2018-06-24 | L6: 2018-08-21 | M6: =IFERROR(INDEX(INDIRECT(CONCATENATE("Table",ROW(M5)-3+1,"[DC NO:]")),MATCH(TableMain[[#This Row],[LC Expiry Date]],INDIRECT(CONCATENATE("Table",ROW(M5)-3+1,"[LC Expiry Date]")),0),1),"") -> LC1452479645 | N6: BBC | O6: =IF(TableFull_Report[[#This Row],[LC Expiry Date]]<TODAY(),"CLOSED","OPEN") -> CLOSED | P6: A/C No.900
B7: 2 | C7: International Services | D7: 154783 | E7: شركة للخدمات العالمية | F7: Subcontractor | G7: 4391605.137 | H7: 2018-05-10 | I7: 5000000 | J7: =TableFull_Report[[#This Row],[LC Value]]-TableFull_Report[[#This Row],[LC invoices Value]] -> 608394.863 | K7: 2017-12-17 | L7: 2018-06-10 | M7: =IFERROR(INDEX(INDIRECT(CONCATENATE("Table",ROW(M6)-3+1,"[DC NO:]")),MATCH(TableMain[[#This Row],[LC Expiry Date]],INDIRECT(CONCATENATE("Table",ROW(M6)-3+1,"[LC Expiry Date]")),0),1),"") -> LC4578542136 | N7: BBC | O7: =IF(TableFull_Report[[#This Row],[LC Expiry Date]]<TODAY(),"CLOSED","OPEN") -> CLOSED | P7: A/C No.900
B8: 3 | C8: Electromechanical | D8: 945873 | E8: الكتروميكال | F8: Subcontractor | G8: 33386651.95 | H8: 2019-09-08 | I8: 53267805.95 | J8: =TableFull_Report[[#This Row],[LC Value]]-TableFull_Report[[#This Row],[LC invoices Value]] -> 19881154 | K8: 2018-10-08 | L8: 2019-10-08 | M8: LC1452479645 | N8: BBC | O8: =IF(TableFull_Report[[#This Row],[LC Expiry Date]]<TODAY(),"CLOSED","OPEN") -> CLOSED | P8: A/C No.900
B9: 3 | C9: Electromechanical | D9: 945873 | E9: الكتروميكال | F9: Subcontractor | G9: 9707670.51 | H9: 2020-04-26 | I9: 21000000 | J9: =TableFull_Report[[#This Row],[LC Value]]-TableFull_Report[[#This Row],[LC invoices Value]] -> 11292329.49 | K9: 2019-11-28 | L9: 2020-05-26 | M9: LC1452479645 | N9: BBC | O9: =IF(TableFull_Report[[#This Row],[LC Expiry Date]]<TODAY(),"CLOSED","OPEN") -> OPEN | P9: A/C No.900
B10: 4 | C10: Technical Works Co | D10: 854693 | E10: شركة الفني للصناعات | F10: Supplier | G10: 532619.37 | H10: 2018-10-01 | I10: 1185796.13 | J10: =TableFull_Report[[#This Row],[LC Value]]-TableFull_Report[[#This Row],[LC invoices Value]] -> 653176.76 | K10: 2018-05-01 | L10: 2018-11-01 | M10: LC4578542136 | N10: BBC | O10: =IF(TableFull_Report[[#This Row],[LC Expiry Date]]<TODAY(),"CLOSED","OPEN") -> CLOSED | P10: A/C No.900
B11: 4 | C11: Technical Works Co | D11: 854693 | E11: شركة الفني للصناعات | F11: Supplier | G11: 596264.09 | H11: 2020-04-06 | I11: 629573.35 | J11: =TableFull_Report[[#This Row],[LC Value]]-TableFull_Report[[#This Row],[LC invoices Value]] -> 33309.26 | K11: 2020-02-11 | L11: 2020-05-06 | M11: LC4578542136 | N11: BBC | O11: =IF(TableFull_Report[[#This Row],[LC Expiry Date]]<TODAY(),"CLOSED","OPEN") -> OPEN | P11: A/C No.900
B12: 5 | C12: P&L Co. | D12: 458216 | E12: شركة بي & ال | F12: Subcontractor | G12: 1716731.4 | H12: 2019-08-02 | I12: 2865900 | J12: =TableFull_Report[[#This Row],[LC Value]]-TableFull_Report[[#This Row],[LC invoices Value]] -> 1149168.6 | K12: 2018-09-25 | L12: 2019-09-02 | M12: LC1234567890 | N12: BBC | O12: =IF(TableFull_Report[[#This Row],[LC Expiry Date]]<TODAY(),"CLOSED","OPEN") -> CLOSED | P12: A/C No.900
B13: Total | C13: SCC -Analysis Report for LC Facilities (Balance Detailed) | D13: =IF(COUNTBLANK(TableFull_Report[System])>0,SUMPRODUCT(1/COUNTIF(TableFull_Report[System],TableFull_Report[System]&""))-1,SUMPRODUCT(1/COUNTIF(TableFull_Report[System],TableFull_Report[System]&""))) -> 5 | G13: =SUBTOTAL(109,TableFull_Report[LC invoices Value]) -> 51924109.56 | I13: =SUBTOTAL(109,TableFull_Report[LC Value]) -> 91289193.79 | J13: =SUBTOTAL(109,TableFull_Report[LC Balance]) -> 39365084.23 | M13: =IF(COUNTBLANK(TableFull_Report[DC NO:])>0,SUMPRODUCT(1/COUNTIF(TableFull_Report[DC NO:],TableFull_Report[DC NO:]&""))-1,SUMPRODUCT(1/COUNTIF(TableFull_Report[DC NO:],TableFull_Report[DC NO:]&""))) -> 4
D15: FIND
B16: Sr | C16: Vendor | D16: System | E16: المورد
B17: =HYPERLINK(CONCATENATE("#",DGET(TableFull_Report[#All],B16,D16:D17),"!A1"),DGET(TableFull_Report[#All],B16,D16:D17)) ->  | C17: =DGET(TableFull_Report[#All],C16,D16:D17) ->  | D17: 104259 | E17: =DGET(TableFull_Report[#All],E16,D16:D17) -> 

Sheet Main
B1: AL Salam Contracting Co. ltd. | D1: SCC - Amaer Project | E1: SABB | F1: Bank | G1: Project code | H1: HART | I1: P.O. Box | J1: 12345 | K1: CR#سجل تجاري | L1: 1234567890 | M1: C.C.# رقم العضويـة | N1: Tel: | O1: 011-1234567 | P1: 010-1234569
B2: شركة السلام للمقاولات المحدودة | D2: مشروع العمائر | E2: 12345678912345678912345 | F2: I Ban | G2: Cost code | H2: 1234 | I2: Postal Code | J2: 67890 | K2: VAT#ض. قيمة مضافة | L2: 123456789101112 | M2: 12345 | N2: Fax: | O2: 011-1234568 | P2: 010-1234570
B3: Sr | C3: Vendor | D3: System | E3: المورد | F3: Vendor Type | G3: LC invoices Value | H3: LC invoices Date | I3: LC Value | J3: LC Balance | K3: Date OF Issue | L3: LC Expiry Date | M3: DC NO: | N3: Bank | O3: Sign By | P3: Facility from | Q3: empty
B4: =HYPERLINK(CONCATENATE("#",ROW(B3)-3+1,"!A1"),ROW(B3)-3+1) -> 1 | C4: =IFERROR(PROPER(INDIRECT(CONCATENATE("'",ROW($C3)-3+1,"'!","D3"))),"") -> Abs Factory | D4: =IFERROR(PROPER(INDIRECT(CONCATENATE("'",ROW($D3)-3+1,"'!","D2"))),"") -> 165646 | E4: =IFERROR(PROPER(INDIRECT(CONCATENATE("'",ROW($E3)-3+1,"'!","D4"))),"") -> مصنع ابس | F4: =IFERROR(PROPER(INDIRECT(CONCATENATE("'",ROW($F3)-3+1,"'!","D6"))),"") -> Supplier | G4: =SUMIFS(INDIRECT(CONCATENATE("Table",ROW(G3)-3+1+10000,"[LC Invoices Value]")),INDIRECT(CONCATENATE("Table",ROW(G3)-3+1+10000,"[DC NO:]")),TableMain[[#This Row],[DC NO:]]) -> 716625.64 | H4: =IFERROR(MAX(INDIRECT(CONCATENATE("Table",ROW(H3)-3+1+10000,"[LC invoices Date]"))),"") -> 2020-02-08 | I4: =SUMIFS(INDIRECT(CONCATENATE("Table",ROW(I3)-3+1,"[LC Value]")),INDIRECT(CONCATENATE("Table",ROW(I3)-3+1,"[DC NO:]")),TableMain[[#This Row],[DC NO:]]) -> 1434615.84 | J4: =+TableMain[[#This Row],[LC Value]]-TableMain[[#This Row],[LC invoices Value]] -> 717990.2 | K4: =IFERROR(MAX(INDIRECT(CONCATENATE("Table",ROW(K3)-3+1,"[Date OF Issue]"))),"") -> 2020-03-09 | L4: =IFERROR(MAX(INDIRECT(CONCATENATE("Table",ROW(L3)-3+1,"[LC Expiry Date]"))),"") -> 2020-06-08 | M4: =IFERROR(INDEX(INDIRECT(CONCATENATE("Table",ROW(M3)-3+1,"[DC NO:]")),MATCH(TableMain[[#This Row],[LC Expiry Date]],INDIRECT(CONCATENATE("Table",ROW(M3)-3+1,"[LC Expiry Date]")),0),1),"") -> LC5481349721 | N4: =IFERROR(INDEX(INDIRECT(CONCATENATE("Table",ROW(N3)-3+1,"[Bank]")),MATCH(TableMain[[#This Row],[LC Expiry Date]],INDIRECT(CONCATENATE("Table",ROW(N3)-3+1,"[LC Expiry Date]")),0),1),"") -> BBC | O4: Project | P4: =IFERROR(PROPER(INDIRECT(CONCATENATE("'",ROW($F3)-3+1,"'!","G21"))),"") -> A/C No.900
B5: 2 | C5: International Services | D5: 154783 | E5: شركة للخدمات العالمية | F5: Subcontractor | G5: =SUMIFS(INDIRECT(CONCATENATE("Table",ROW(G4)-3+1+10000,"[LC Invoices Value]")),INDIRECT(CONCATENATE("Table",ROW(G4)-3+1+10000,"[DC NO:]")),TableMain[[#This Row],[DC NO:]]) -> 0 | H5: 2018-02-12 | I5: =SUMIFS(INDIRECT(CONCATENATE("Table",ROW(I4)-3+1,"[LC Value]")),INDIRECT(CONCATENATE("Table",ROW(I4)-3+1,"[DC NO:]")),TableMain[[#This Row],[DC NO:]]) -> 4000000 | J5: =+TableMain[[#This Row],[LC Value]]-TableMain[[#This Row],[LC invoices Value]] -> 4000000 | K5: 2018-06-24 | L5: 2018-08-21 | M5: =IFERROR(INDEX(INDIRECT(CONCATENATE("Table",ROW(M4)-3+1,"[DC NO:]")),MATCH(TableMain[[#This Row],[LC Expiry Date]],INDIRECT(CONCATENATE("Table",ROW(M4)-3+1,"[LC Expiry Date]")),0),1),"") -> LC9543157824 | N5: =IFERROR(INDEX(INDIRECT(CONCATENATE("Table",ROW(N4)-3+1,"[Bank]")),MATCH(TableMain[[#This Row],[LC Expiry Date]],INDIRECT(CONCATENATE("Table",ROW(N4)-3+1,"[LC Expiry Date]")),0),1),"") -> BBC | O5: HO | P5: A/C No.900
B6: 3 | C6: Electromechanical | D6: 945873 | E6: الكتروميكال | F6: Subcontractor | G6: =SUMIFS(INDIRECT(CONCATENATE("Table",ROW(G5)-3+1+10000,"[LC Invoices Value]")),INDIRECT(CONCATENATE("Table",ROW(G5)-3+1+10000,"[DC NO:]")),TableMain[[#This Row],[DC NO:]]) -> 9707670.51 | H6: 2020-02-17 | I6: =SUMIFS(INDIRECT(CONCATENATE("Table",ROW(I5)-3+1,"[LC Value]")),INDIRECT(CONCATENATE("Table",ROW(I5)-3+1,"[DC NO:]")),TableMain[[#This Row],[DC NO:]]) -> 21000000 | J6: =+TableMain[[#This Row],[LC Value]]-TableMain[[#This Row],[LC invoices Value]] -> 11292329.49 | K6: 2019-11-28 | L6: 2020-05-26 | M6: =IFERROR(INDEX(INDIRECT(CONCATENATE("Table",ROW(M5)-3+1,"[DC NO:]")),MATCH(TableMain[[#This Row],[LC Expiry Date]],INDIRECT(CONCATENATE("Table",ROW(M5)-3+1,"[LC Expiry Date]")),0),1),"") -> LC1452479645 | N6: =IFERROR(INDEX(INDIRECT(CONCATENATE("Table",ROW(N5)-3+1,"[Bank]")),MATCH(TableMain[[#This Row],[LC Expiry Date]],INDIRECT(CONCATENATE("Table",ROW(N5)-3+1,"[LC Expiry Date]")),0),1),"") -> BBC | O6: Project | P6: A/C No.900
B7: 4 | C7: Technical Works Co | D7: 854693 | E7: شركة الفني للصناعات | F7: Supplier | G7: =SUMIFS(INDIRECT(CONCATENATE("Table",ROW(G6)-3+1+10000,"[LC Invoices Value]")),INDIRECT(CONCATENATE("Table",ROW(G6)-3+1+10000,"[DC NO:]")),TableMain[[#This Row],[DC NO:]]) -> 596264.09 | H7: 2020-02-16 | I7: =SUMIFS(INDIRECT(CONCATENATE("Table",ROW(I6)-3+1,"[LC Value]")),INDIRECT(CONCATENATE("Table",ROW(I6)-3+1,"[DC NO:]")),TableMain[[#This Row],[DC NO:]]) -> 629573.35 | J7: =+TableMain[[#This Row],[LC Value]]-TableMain[[#This Row],[LC invoices Value]] -> 33309.26 | K7: 2020-02-11 | L7: 2020-05-06 | M7: =IFERROR(INDEX(INDIRECT(CONCATENATE("Table",ROW(M6)-3+1,"[DC NO:]")),MATCH(TableMain[[#This Row],[LC Expiry Date]],INDIRECT(CONCATENATE("Table",ROW(M6)-3+1,"[LC Expiry Date]")),0),1),"") -> LC4578542136 | N7: =IFERROR(INDEX(INDIRECT(CONCATENATE("Table",ROW(N6)-3+1,"[Bank]")),MATCH(TableMain[[#This Row],[LC Expiry Date]],INDIRECT(CONCATENATE("Table",ROW(N6)-3+1,"[LC Expiry Date]")),0),1),"") -> BBC | O7: HO | P7: A/C No.900
B8: 5 | C8: P&L Co. | D8: 458216 | E8: شركة بي & ال | F8: Subcontractor | G8: =SUMIFS(INDIRECT(CONCATENATE("Table",ROW(G7)-3+1+10000,"[LC Invoices Value]")),INDIRECT(CONCATENATE("Table",ROW(G7)-3+1+10000,"[DC NO:]")),TableMain[[#This Row],[DC NO:]]) -> 1716731.4 | H8: 2019-07-22 | I8: =SUMIFS(INDIRECT(CONCATENATE("Table",ROW(I7)-3+1,"[LC Value]")),INDIRECT(CONCATENATE("Table",ROW(I7)-3+1,"[DC NO:]")),TableMain[[#This Row],[DC NO:]]) -> 2865900 | J8: =+TableMain[[#This Row],[LC Value]]-TableMain[[#This Row],[LC invoices Value]] -> 1149168.6 | K8: 2019-06-03 | L8: 2019-09-02 | M8: =IFERROR(INDEX(INDIRECT(CONCATENATE("Table",ROW(M7)-3+1,"[DC NO:]")),MATCH(TableMain[[#This Row],[LC Expiry Date]],INDIRECT(CONCATENATE("Table",ROW(M7)-3+1,"[LC Expiry Date]")),0),1),"") -> LC1234567890 | N8: =IFERROR(INDEX(INDIRECT(CONCATENATE("Table",ROW(N7)-3+1,"[Bank]")),MATCH(TableMain[[#This Row],[LC Expiry Date]],INDIRECT(CONCATENATE("Table",ROW(N7)-3+1,"[LC Expiry Date]")),0),1),"") -> BBC | O8: HO | P8: A/C No.900
B9: Total | C9: SCC-LC-Balance Analysis Report | D9: Total | E9: LC - Vendors | F9: =IF(COUNTBLANK(TableMain[المورد])>0,SUMPRODUCT(1/COUNTIF(TableMain[المورد],TableMain[المورد]&""))-1,SUMPRODUCT(1/COUNTIF(TableMain[المورد],TableMain[المورد]&""))) -> 5 | G9: =SUBTOTAL(109,TableMain[LC invoices Value]) -> 12737291.64 | I9: =SUBTOTAL(109,TableMain[LC Value]) -> 29930089.19 | J9: =SUBTOTAL(109,TableMain[LC Balance]) -> 17192797.55
D11: FIND
B12: Sr | C12: Vendor | D12: System | E12: المورد
B13: =HYPERLINK(CONCATENATE("#",DGET(TableMain[#All],B12,D12:D13),"!A1"),DGET(TableMain[#All],B12,D12:D13)) -> 5 | C13: =DGET(TableMain[#All],C12,D12:D13) -> P&L Co. | D13: 458216 | E13: =DGET(TableMain[#All],E12,D12:D13) -> شركة بي & ال

Sheet 1
A1: 1 | H1: H | I1: =I2 -> 2020-03-31
B2: Beneficiary Number: | D2: 165646 | H2: G | I2: =TODAY() -> 2020-03-31
B3: Beneficiary Name: | D3: Abs Factory
B4: اسم المستفيد | D4: مصنع ابس
B5: Scope | D5: Supply Metals
B6: Vendor Type | D6: Supplier
B7: IBAN | D7: EG123457154896315478216985 | G7: Swift Code #
B8: Available with/by: | D8: ALARABY
B9: Bank Address
A10: Ser. | B10: Status# | C10: Date OF Issue | D10: LC Expiry Date | E10: DC NO: | F10: Bank | G10: LC Value | H10: Goods | I10: Validity of Credit | J10: Drafts at: | K10: Present Date | L10: Documents Presented Date | M10: Documents Required | N10: EVIDENCING
A11: =+ROW()-10 -> 1 | B11: Open#1 | C11: 43524 | D11: 43613 | E11: LC1245871236 | F11: BBC | G11: 1205502.52 | H11: CPT/Applicant's Project Site, | I11: 60 | J11: 60 Days from delivery Date | K11: 21 | L11: Within 21 Days from Applicant Authorized Sign. | M11: 1 Orig.Comm.Inv.+1 Copy 1 Orig. Deli. + 1 Copy | N11: Receipt of Goods In Good Order And Condition and Stating The Exact Delivery Date.
A12: 2 | B12: Extend Date&Value#1 | C12: 43614 | D12: 43705 | E12: LC1245871236 | F12: BBC | G12: 700000 | H12: CPT/Applicant's Project Site, | I12: 60 | J12: 60 Days from delivery Date | K12: 21 | L12: Within 21 Days from Applicant Authorized Sign. | M12: 1 Orig.Comm.Inv.+1 Copy 1 Orig. Deli. + 1 Copy | N12: Receipt of Goods In Good Order And Condition and Stating The Exact Delivery Date.
A13: 3 | B13: Open#2 | C13: 43807 | D13: 43898 | E13: LC5481349721 | F13: BBC | G13: 1060290.84 | H13: CPT/Applicant's Project Site, | I13: 60 | J13: 60 Days from delivery Date | K13: 21 | L13: Within 21 Days from Applicant Authorized Sign. | M13: 1 Orig.Comm.Inv.+1 Copy 1 Orig. Deli. + 1 Copy | N13: Receipt of Goods In Good Order And Condition and Stating The Exact Delivery Date.
A14: 4 | B14: Extend Date&Value#2/1 | C14: 43899 | D14: 43990 | E14: LC5481349721 | F14: BBC | G14: 374325 | H14: CPT/Applicant's Project Site, | I14: 60 | J14: 60 Days from delivery Date | K14: 21 | L14: Within 21 Days from Applicant Authorized Sign. | M14: 1 Orig.Comm.Inv.+1 Copy 1 Orig. Deli. + 1 Copy | N14: Receipt of Goods In Good Order And Condition and Stating The Exact Delivery Date.
A15: 5
A16: 6
A17: 7
A18: =+ROW()-10 -> 8
A19: =+ROW()-10 -> 9
A20: =SUBTOTAL(103,Table1[Ser.]) -> 9 | B20: Total | G20: =SUBTOTAL(109,Table1[LC Value]) -> 3340118.36
G21: A/C No.900
B22: from | C22: to
B23: Presented with | C23: Validity of Credit | D23: LC Expiry Date after
B24: =INDEX(Table1[Present Date],MATCH(LOOKUP(2,1/(Table1[Present Date]<>""),Table1[Present Date]),Table1[Present Date],0),1) -> 21 | C24: =INDEX(Table1[Validity of Credit],MATCH(LOOKUP(2,1/(Table1[Validity of Credit]<>""),Table1[Validity of Credit]),Table1[Validity of Credit],0),1) -> 60 | D24: =INDEX(Table1[LC Expiry Date],MATCH(LOOKUP(2,1/(Table1[LC Expiry Date]<>""),Table1[LC Expiry Date]),Table1[LC Expiry Date],0),1)-TODAY() -> 69
B25: =C25-B24 -> 2020-03-18 | C25: =INDEX(Table10001[LC invoices Date],MATCH(LOOKUP(2,1/(Table10001[LC invoices Date]<>""),Table10001[LC invoices Date]),Table10001[LC invoices Date],0),1)+C24 -> 2020-04-08 | D25: =INDEX(Table1[LC Expiry Date],MATCH(LOOKUP(2,1/(Table1[LC Expiry Date]<>""),Table1[LC Expiry Date]),Table1[LC Expiry Date],0),1) -> 2020-06-08
A26: Inv.# | B26: LC invoices Value | C26: LC invoices Date | D26: LC Balance | E26: DC NO: | F26: Available Limit | G26: JARP/Received Date | H26: LC Status | I26: Sent/H.O. | J26: Received/H.O | K26: Returned/H.O. | L26: Beneficiary/Received | M26: Remarks
A27: ASL-1825 | B27: 513935.82 | C27: 43582 | D27: =IF(E27=0,D26,IF(ISTEXT(D26),SUMPRODUCT(Table1[LC Value]*(Table1[DC NO:]=Table10001[[#This Row],[DC NO:]]))-B27,IF(_xlfn.IFNA(MATCH(E27,E26,0)=1,0),D26-B27,SUMPRODUCT(Table1[LC Value]*(Table1[DC NO:]=Table10001[[#This Row],[DC NO:]]))-B27))) -> 1391566.7 | E27: LC1245871236 | F27: =IFERROR(D27/SUMPRODUCT(Table1[LC Value]*(Table1[DC NO:]=Table10001[[#This Row],[DC NO:]])),"") -> 0.7302885645 | G27: - | H27: Vendor Received | I27: 2019-05-13 | J27: 2019-05-13 | L27: 2019-05-26
A28: ASL-1842 | B28: 362005.64 | C28: 43671 | D28: =IF(E28=0,D27,IF(ISTEXT(D27),SUMPRODUCT(Table1[LC Value]*(Table1[DC NO:]=Table10001[[#This Row],[DC NO:]]))-B28,IF(_xlfn.IFNA(MATCH(E28,E27,0)=1,0),D27-B28,SUMPRODUCT(Table1[LC Value]*(Table1[DC NO:]=Table10001[[#This Row],[DC NO:]]))-B28))) -> 1029561.06 | E28: LC1245871236 | F28: =IFERROR(D28/SUMPRODUCT(Table1[LC Value]*(Table1[DC NO:]=Table10001[[#This Row],[DC NO:]])),"") -> 0.5403094718 | G28: - | H28: Vendor Received
A29: ASL-1868 | B29: 120891.14 | C29: 43816 | D29: =IF(E29=0,D28,IF(ISTEXT(D28),SUMPRODUCT(Table1[LC Value]*(Table1[DC NO:]=Table10001[[#This Row],[DC NO:]]))-B29,IF(_xlfn.IFNA(MATCH(E29,E28,0)=1,0),D28-B29,SUMPRODUCT(Table1[LC Value]*(Table1[DC NO:]=Table10001[[#This Row],[DC NO:]]))-B29))) -> 1313724.7 | E29: LC5481349721 | F29: =IFERROR(D29/SUMPRODUCT(Table1[LC Value]*(Table1[DC NO:]=Table10001[[#This Row],[DC NO:]])),"") -> 0.9157327442 | G29: 2019-12-25 | H29: Vendor Received | I29: 2019-12-25 | L29: 2019-12-29
A30: ASL-1883 | B30: 394747.5 | C30: 43869 | D30: =IF(E30=0,D29,IF(ISTEXT(D29),SUMPRODUCT(Table1[LC Value]*(Table1[DC NO:]=Table10001[[#This Row],[DC NO:]]))-B30,IF(_xlfn.IFNA(MATCH(E30,E29,0)=1,0),D29-B30,SUMPRODUCT(Table1[LC Value]*(Table1[DC NO:]=Table10001[[#This Row],[DC NO:]]))-B30))) -> 918977.2 | E30: LC5481349721 | F30: =IFERROR(D30/SUMPRODUCT(Table1[LC Value]*(Table1[DC NO:]=Table10001[[#This Row],[DC NO:]])),"") -> 0.6405737162 | G30: 2020-02-26 | H30: Vendor Received | I30: 2020-02-27 | L30: 2020-03-01
A31: ASL-1884 | B31: 200987 | C31: 43869 | D31: =IF(E31=0,D30,IF(ISTEXT(D30),SUMPRODUCT(Table1[LC Value]*(Table1[DC NO:]=Table10001[[#This Row],[DC NO:]]))-B31,IF(_xlfn.IFNA(MATCH(E31,E30,0)=1,0),D30-B31,SUMPRODUCT(Table1[LC Value]*(Table1[DC NO:]=Table10001[[#This Row],[DC NO:]]))-B31))) -> 717990.2 | E31: LC5481349721 | F31: =IFERROR(D31/SUMPRODUCT(Table1[LC Value]*(Table1[DC NO:]=Table10001[[#This Row],[DC NO:]])),"") -> 0.5004755838 | G31: 2020-02-26 | H31: Vendor Received | I31: 2020-03-03 | L31: 2020-03-04
D32: =IF(E32=0,D31,IF(ISTEXT(D31),SUMPRODUCT(Table1[LC Value]*(Table1[DC NO:]=Table10001[[#This Row],[DC NO:]]))-B32,IF(_xlfn.IFNA(MATCH(E32,E31,0)=1,0),D31-B32,SUMPRODUCT(Table1[LC Value]*(Table1[DC NO:]=Table10001[[#This Row],[DC NO:]]))-B32))) -> 717990.2 | F32: =IFERROR(D32/SUMPRODUCT(Table1[LC Value]*(Table1[DC NO:]=Table10001[[#This Row],[DC NO:]])),"") -> 
D33: =IF(E33=0,D32,IF(ISTEXT(D32),SUMPRODUCT(Table1[LC Value]*(Table1[DC NO:]=Table10001[[#This Row],[DC NO:]]))-B33,IF(_xlfn.IFNA(MATCH(E33,E32,0)=1,0),D32-B33,SUMPRODUCT(Table1[LC Value]*(Table1[DC NO:]=Table10001[[#This Row],[DC NO:]]))-B33))) -> 717990.2 | F33: =IFERROR(D33/SUMPRODUCT(Table1[LC Value]*(Table1[DC NO:]=Table10001[[#This Row],[DC NO:]])),"") -> 
D34: =IF(E34=0,D33,IF(ISTEXT(D33),SUMPRODUCT(Table1[LC Value]*(Table1[DC NO:]=Table10001[[#This Row],[DC NO:]]))-B34,IF(_xlfn.IFNA(MATCH(E34,E33,0)=1,0),D33-B34,SUMPRODUCT(Table1[LC Value]*(Table1[DC NO:]=Table10001[[#This Row],[DC NO:]]))-B34))) -> 717990.2 | F34: =IFERROR(D34/SUMPRODUCT(Table1[LC Value]*(Table1[DC NO:]=Table10001[[#This Row],[DC NO:]])),"") -> 
D35: =IF(E35=0,D34,IF(ISTEXT(D34),SUMPRODUCT(Table1[LC Value]*(Table1[DC NO:]=Table10001[[#This Row],[DC NO:]]))-B35,IF(_xlfn.IFNA(MATCH(E35,E34,0)=1,0),D34-B35,SUMPRODUCT(Table1[LC Value]*(Table1[DC NO:]=Table10001[[#This Row],[DC NO:]]))-B35))) -> 717990.2 | F35: =IFERROR(D35/SUMPRODUCT(Table1[LC Value]*(Table1[DC NO:]=Table10001[[#This Row],[DC NO:]])),"") -> 
D36: =IF(E36=0,D35,IF(ISTEXT(D35),SUMPRODUCT(Table1[LC Value]*(Table1[DC NO:]=Table10001[[#This Row],[DC NO:]]))-B36,IF(_xlfn.IFNA(MATCH(E36,E35,0)=1,0),D35-B36,SUMPRODUCT(Table1[LC Value]*(Table1[DC NO:]=Table10001[[#This Row],[DC NO:]]))-B36))) -> 717990.2 | F36: =IFERROR(D36/SUMPRODUCT(Table1[LC Value]*(Table1[DC NO:]=Table10001[[#This Row],[DC NO:]])),"") -> 
A37: =SUBTOTAL(103,Table10001[Inv.'#]) -> 5 | B37: =SUBTOTAL(109,Table10001[LC invoices Value]) -> 1592567.1 | C37: Total | D37: =Table1[[#Totals],[LC Value]]-Table10001[[#Totals],[LC invoices Value]] -> 1747551.26 | F37: =INDEX(Table10001[Available Limit],MATCH(LOOKUP(2,1/(Table10001[Available Limit]<>""),Table10001[Available Limit]),Table10001[Available Limit],0),1) -> 0.5004755838
B38: =+SUMPRODUCT(Table10001[LC invoices Value]*(Table10001[DC NO:]=INDEX(Table10001[DC NO:],MATCH(LOOKUP(2,1/(Table10001[DC NO:]<>""),Table10001[DC NO:]),Table10001[DC NO:],0),1))) -> 716625.64

Sheet 2
A1: 2 | H1: H | I1: =I2 -> 2020-03-31
B2: Beneficiary Number: | D2: 154783 | H2: G | I2: =TODAY() -> 2020-03-31
B3: Beneficiary Name: | D3: INTERNATIONAL SERVICES
B4: اسم المستفيد | D4: شركة للخدمات العالمية
B5: Scope | D5: Supply Equipment's
B6: Vendor Type | D6: Subcontractor
B7: IBAN | D7: EG12347854692134567964214 | G7: Swift Code #
B8: Available with/by: | D8: MONACO BANK
B9: Bank Address
A10: Ser. | B10: Status# | C10: Date OF Issue | D10: LC Expiry Date | E10: DC NO: | F10: Bank | G10: LC Value | H10: Goods | I10: Validity of Credit | J10: Drafts at: | K10: Present Date | L10: Documents Presented Date | M10: Documents Required | N10: EVIDENCING
A11: =+ROW()-10 -> 1 | B11: Open#1 | C11: 43275 | D11: 43333 | E11: LC9543157824 | F11: BBC | G11: 4000000 | H11: CPT/Applicant's Project Site, | I11: 30 | J11: 30 Days from Commercial Invoice | K11: 21 | L11: Within 21 Days from Applicant Authorized Sign. | M11: 1 Orig.Comm.Inv.+1 Copy 1 Orig. Deli. + 1 Copy | N11: Receipt of Goods In Good Order And Condition and Stating The Exact Delivery Date.
A12: 2 | B12: Open#1 | C12: 43086 | D12: 43169 | E12: LC5478613479 | F12: BBC | G12: 5000000 | H12: CPT/Applicant's Project Site, | I12: 30 | J12: 30 Days from Commercial Invoice | K12: 21 | L12: Within 21 Days from Applicant Authorized Sign. | M12: 1 Orig.Comm.Inv.+1 Copy 1 Orig. Deli. + 1 Copy | N12: Receipt of Goods In Good Order And Condition and Stating The Exact Delivery Date.
A13: 3
A14: 4
A15: 5
A16: 6
A17: 7
A18: =+ROW()-10 -> 8
A19: =+ROW()-10 -> 9
A20: =SUBTOTAL(103,Table2[Ser.]) -> 9 | B20: Total | G20: =SUBTOTAL(109,Table2[LC Value]) -> 9000000
G21: A/C No.900
B22: from | C22: to
B23: Presented with | C23: Validity of Credit | D23: LC Expiry Date after
B24: =INDEX(Table2[Present Date],MATCH(LOOKUP(2,1/(Table2[Present Date]<>""),Table2[Present Date]),Table2[Present Date],0),1) -> 21 | C24: =INDEX(Table2[Validity of Credit],MATCH(LOOKUP(2,1/(Table2[Validity of Credit]<>""),Table2[Validity of Credit]),Table2[Validity of Credit],0),1) -> 30 | D24: =INDEX(Table2[LC Expiry Date],MATCH(LOOKUP(2,1/(Table2[LC Expiry Date]<>""),Table2[LC Expiry Date]),Table2[LC Expiry Date],0),1)-TODAY() -> -752
B25: =C25-B24 -> 2018-02-21 | C25: =INDEX(Table10002[LC invoices Date],MATCH(LOOKUP(2,1/(Table10002[LC invoices Date]<>""),Table10002[LC invoices Date]),Table10002[LC invoices Date],0),1)+C24 -> 2018-03-14 | D25: =INDEX(Table2[LC Expiry Date],MATCH(LOOKUP(2,1/(Table2[LC Expiry Date]<>""),Table2[LC Expiry Date]),Table2[LC Expiry Date],0),1) -> 2018-03-10
A26: Inv.# | B26: LC invoices Value | C26: LC invoices Date | D26: LC Balance | E26: DC NO: | F26: Available Limit | G26: JARP/ Received Date | H26: LC Status | I26: Sent/H.O. | J26: Received/H.O | K26: Returned/H.O. | L26: Beneficiary/Received | M26: Remarks
A27: =+ROW()-26 -> 1 | B27: 2085472.5 | C27: 43086 | D27: =IF(E27=0,D26,IF(ISTEXT(D26),SUMPRODUCT(Table2[LC Value]*(Table2[DC NO:]=Table10002[[#This Row],[DC NO:]]))-B27,IF(_xlfn.IFNA(MATCH(E27,E26,0)=1,0),D26-B27,SUMPRODUCT(Table2[LC Value]*(Table2[DC NO:]=Table10002[[#This Row],[DC NO:]]))-B27))) -> 2914527.5 | E27: LC5478613479 | F27: =IFERROR(D27/SUMPRODUCT(Table2[LC Value]*(Table2[DC NO:]=Table10002[[#This Row],[DC NO:]])),"") -> 0.5829055 | H27: Vendor Received | L27: 2018-01-18
A28: =+ROW()-26 -> 2 | B28: 544686.7236 | C28: 43100 | D28: =IF(E28=0,D27,IF(ISTEXT(D27),SUMPRODUCT(Table2[LC Value]*(Table2[DC NO:]=Table10002[[#This Row],[DC NO:]]))-B28,IF(_xlfn.IFNA(MATCH(E28,E27,0)=1,0),D27-B28,SUMPRODUCT(Table2[LC Value]*(Table2[DC NO:]=Table10002[[#This Row],[DC NO:]]))-B28))) -> 2369840.776 | E28: LC5478613479 | F28: =IFERROR(D28/SUMPRODUCT(Table2[LC Value]*(Table2[DC NO:]=Table10002[[#This Row],[DC NO:]])),"") -> 0.4739681553 | H28: Vendor Received | L28: 2018-03-07
A29: 3 | B29: 539392.9134 | C29: 43105 | D29: =IF(E29=0,D28,IF(ISTEXT(D28),SUMPRODUCT(Table2[LC Value]*(Table2[DC NO:]=Table10002[[#This Row],[DC NO:]]))-B29,IF(_xlfn.IFNA(MATCH(E29,E28,0)=1,0),D28-B29,SUMPRODUCT(Table2[LC Value]*(Table2[DC NO:]=Table10002[[#This Row],[DC NO:]]))-B29))) -> 1830447.863 | E29: LC5478613479 | F29: =IFERROR(D29/SUMPRODUCT(Table2[LC Value]*(Table2[DC NO:]=Table10002[[#This Row],[DC NO:]])),"") -> 0.3660895726 | H29: Vendor Received | L29: 2018-04-18
A30: 4 | B30: 222053 | C30: 43129 | D30: =IF(E30=0,D29,IF(ISTEXT(D29),SUMPRODUCT(Table2[LC Value]*(Table2[DC NO:]=Table10002[[#This Row],[DC NO:]]))-B30,IF(_xlfn.IFNA(MATCH(E30,E29,0)=1,0),D29-B30,SUMPRODUCT(Table2[LC Value]*(Table2[DC NO:]=Table10002[[#This Row],[DC NO:]]))-B30))) -> 1608394.863 | E30: LC5478613479 | F30: =IFERROR(D30/SUMPRODUCT(Table2[LC Value]*(Table2[DC NO:]=Table10002[[#This Row],[DC NO:]])),"") -> 0.3216789726 | H30: Vendor Received | L30: 2018-04-15
A31: 5 | B31: 1000000 | C31: 43143 | D31: =IF(E31=0,D30,IF(ISTEXT(D30),SUMPRODUCT(Table2[LC Value]*(Table2[DC NO:]=Table10002[[#This Row],[DC NO:]]))-B31,IF(_xlfn.IFNA(MATCH(E31,E30,0)=1,0),D30-B31,SUMPRODUCT(Table2[LC Value]*(Table2[DC NO:]=Table10002[[#This Row],[DC NO:]]))-B31))) -> 608394.863 | E31: LC5478613479 | F31: =IFERROR(D31/SUMPRODUCT(Table2[LC Value]*(Table2[DC NO:]=Table10002[[#This Row],[DC NO:]])),"") -> 0.1216789726 | H31: Vendor Received | L31: 2018-05-19
D32: =IF(E32=0,D31,IF(ISTEXT(D31),SUMPRODUCT(Table2[LC Value]*(Table2[DC NO:]=Table10002[[#This Row],[DC NO:]]))-B32,IF(_xlfn.IFNA(MATCH(E32,E31,0)=1,0),D31-B32,SUMPRODUCT(Table2[LC Value]*(Table2[DC NO:]=Table10002[[#This Row],[DC NO:]]))-B32))) -> 608394.863 | F32: =IFERROR(D32/SUMPRODUCT(Table2[LC Value]*(Table2[DC NO:]=Table10002[[#This Row],[DC NO:]])),"") -> 
D33: =IF(E33=0,D32,IF(ISTEXT(D32),SUMPRODUCT(Table2[LC Value]*(Table2[DC NO:]=Table10002[[#This Row],[DC NO:]]))-B33,IF(_xlfn.IFNA(MATCH(E33,E32,0)=1,0),D32-B33,SUMPRODUCT(Table2[LC Value]*(Table2[DC NO:]=Table10002[[#This Row],[DC NO:]]))-B33))) -> 608394.863 | F33: =IFERROR(D33/SUMPRODUCT(Table2[LC Value]*(Table2[DC NO:]=Table10002[[#This Row],[DC NO:]])),"") -> 
D34: =IF(E34=0,D33,IF(ISTEXT(D33),SUMPRODUCT(Table2[LC Value]*(Table2[DC NO:]=Table10002[[#This Row],[DC NO:]]))-B34,IF(_xlfn.IFNA(MATCH(E34,E33,0)=1,0),D33-B34,SUMPRODUCT(Table2[LC Value]*(Table2[DC NO:]=Table10002[[#This Row],[DC NO:]]))-B34))) -> 608394.863 | F34: =IFERROR(D34/SUMPRODUCT(Table2[LC Value]*(Table2[DC NO:]=Table10002[[#This Row],[DC NO:]])),"") -> 
D35: =IF(E35=0,D34,IF(ISTEXT(D34),SUMPRODUCT(Table2[LC Value]*(Table2[DC NO:]=Table10002[[#This Row],[DC NO:]]))-B35,IF(_xlfn.IFNA(MATCH(E35,E34,0)=1,0),D34-B35,SUMPRODUCT(Table2[LC Value]*(Table2[DC NO:]=Table10002[[#This Row],[DC NO:]]))-B35))) -> 608394.863 | F35: =IFERROR(D35/SUMPRODUCT(Table2[LC Value]*(Table2[DC NO:]=Table10002[[#This Row],[DC NO:]])),"") -> 
D36: =IF(E36=0,D35,IF(ISTEXT(D35),SUMPRODUCT(Table2[LC Value]*(Table2[DC NO:]=Table10002[[#This Row],[DC NO:]]))-B36,IF(_xlfn.IFNA(MATCH(E36,E35,0)=1,0),D35-B36,SUMPRODUCT(Table2[LC Value]*(Table2[DC NO:]=Table10002[[#This Row],[DC NO:]]))-B36))) -> 608394.863 | F36: =IFERROR(D36/SUMPRODUCT(Table2[LC Value]*(Table2[DC NO:]=Table10002[[#This Row],[DC NO:]])),"") -> 
A37: =SUBTOTAL(103,Table10002[Inv.'#]) -> 5 | B37: =SUBTOTAL(109,Table10002[LC invoices Value]) -> 4391605.137 | C37: Total | D37: =Table2[[#Totals],[LC Value]]-Table10002[[#Totals],[LC invoices Value]] -> 4608394.863 | F37: =INDEX(Table10002[Available Limit],MATCH(LOOKUP(2,1/(Table10002[Available Limit]<>""),Table10002[Available Limit]),Table10002[Available Limit],0),1) -> 0.1216789726
B38: =+SUMPRODUCT(Table10002[LC invoices Value]*(Table10002[DC NO:]=INDEX(Table10002[DC NO:],MATCH(LOOKUP(2,1/(Table10002[DC NO:]<>""),Table10002[DC NO:]),Table10002[DC NO:],0),1))) -> 4391605.137

Sheet 3
A1: 3 | H1: H | I1: =I2 -> 2020-03-31
B2: Beneficiary Number: | D2: 945873 | H2: G | I2: =TODAY() -> 2020-03-31
B3: Beneficiary Name: | D3: ELECTROMECHANICAL
B4: اسم المستفيد | D4: الكتروميكال
B5: Scope | D5: MEP Works
B6: Vendor Type | D6: Subcontractor
B7: IBAN | D7: EG6478512345679645210063145 | G7: Swift Code #
B8: Available with/by: | D8: OUDAH
B9: Bank Address
A10: Ser. | B10: Status# | C10: Date OF Issue | D10: LC Expiry Date | E10: DC NO: | F10: Bank | G10: LC Value | H10: Goods | I10: Validity of Credit | J10: Drafts at: | K10: Present Date | L10: Documents Presented Date | M10: Documents Required | N10: EVIDENCING
A11: =+ROW()-10 -> 1 | B11: Open#1 | C11: 43381 | D11: 43556 | E11: LC6478124567 | F11: BBC | G11: 30000000 | H11: CPT/Applicant's Project Site, | I11: 60 | J11: 60 Days from Invoice Date | K11: 21 | L11: Within 21 Days from Applicant Authorized Sign. | M11: 1 Orig.Comm.Inv.+1 Copy 1 Orig. Deli. + 1 Copy | N11: Receipt of Goods In Good Order And Condition and Stating The Exact Delivery Date.
A12: 2 | B12: Extend Date&Value#1/1 | C12: 43556 | D12: 43647 | E12: LC6478124567 | F12: BBC | G12: 2267805.95 | H12: CPT/Applicant's Project Site, | I12: 60 | J12: 60 Days from Invoice Date | K12: 21 | L12: Within 21 Days from Applicant Authorized Sign. | M12: 1 Orig.Comm.Inv.+1 Copy 1 Orig. Deli. + 1 Copy | N12: Receipt of Goods In Good Order And Condition and Stating The Exact Delivery Date.
A13: 3 | B13: Extend Date&Value#2/1 | C13: 43647 | D13: 43746 | E13: LC6478124567 | F13: BBC | G13: 21000000 | H13: CPT/Applicant's Project Site, | I13: 60 | J13: 60 Days from Invoice Date | K13: 21 | L13: Within 21 Days from Applicant Authorized Sign. | M13: 1 Orig.Comm.Inv.+1 Copy 1 Orig. Deli. + 1 Copy | N13: Receipt of Goods In Good Order And Condition and Stating The Exact Delivery Date.
A14: 4 | B14: Open#2 | C14: 43797 | D14: 43977 | E14: LC1452479645 | F14: BBC | G14: 21000000 | H14: CPT/Applicant's Project Site, | I14: 60 | J14: 60 Days from Invoice Date | K14: 21 | L14: Within 21 Days from Applicant Authorized Sign. | M14: 1 Orig.Comm.Inv.+1 Copy 1 Orig. Deli. + 1 Copy | N14: Receipt of Goods In Good Order And Condition and Stating The Exact Delivery Date.
A15: 5
A16: 6
A17: 7
A18: =+ROW()-10 -> 8
A19: =+ROW()-10 -> 9
A20: =SUBTOTAL(103,Table3[Ser.]) -> 9 | B20: Total | G20: =SUBTOTAL(109,Table3[LC Value]) -> 74267805.95
G21: A/C No.900
B22: from | C22: to
B23: Presented with | C23: Validity of Credit | D23: LC Expiry Date after
B24: =INDEX(Table3[Present Date],MATCH(LOOKUP(2,1/(Table3[Present Date]<>""),Table3[Present Date]),Table3[Present Date],0),1) -> 21 | C24: =INDEX(Table3[Validity of Credit],MATCH(LOOKUP(2,1/(Table3[Validity of Credit]<>""),Table3[Validity of Credit]),Table3[Validity of Credit],0),1) -> 60 | D24: =INDEX(Table3[LC Expiry Date],MATCH(LOOKUP(2,1/(Table3[LC Expiry Date]<>""),Table3[LC Expiry Date]),Table3[LC Expiry Date],0),1)-TODAY() -> 56
B25: =C25-B24 -> 2020-03-27 | C25: =INDEX(Table10003[LC invoices Date],MATCH(LOOKUP(2,1/(Table10003[LC invoices Date]<>""),Table10003[LC invoices Date]),Table10003[LC invoices Date],0),1)+C24 -> 2020-04-17 | D25: =INDEX(Table3[LC Expiry Date],MATCH(LOOKUP(2,1/(Table3[LC Expiry Date]<>""),Table3[LC Expiry Date]),Table3[LC Expiry Date],0),1) -> 2020-05-26
A26: Inv.# | B26: LC invoices Value | C26: LC invoices Date | D26: LC Balance | E26: DC NO: | F26: Available Limit | G26: JARP/ Received Date | H26: LC Status | I26: Sent/H.O. | J26: Received/H.O | K26: Returned/H.O. | L26: Beneficiary/Received | M26: Remarks
A27: 0 | B27: 26040000 | C27: 43383 | D27: =IF(E27=0,D26,IF(ISTEXT(D26),SUMPRODUCT(Table3[LC Value]*(Table3[DC NO:]=Table10003[[#This Row],[DC NO:]]))-B27,IF(_xlfn.IFNA(MATCH(E27,E26,0)=1,0),D26-B27,SUMPRODUCT(Table3[LC Value]*(Table3[DC NO:]=Table10003[[#This Row],[DC NO:]]))-B27))) -> 27227805.95 | E27: LC6478124567 | F27: =IFERROR(D27/SUMPRODUCT(Table3[LC Value]*(Table3[DC NO:]=Table10003[[#This Row],[DC NO:]])),"") -> 0.5111493793 | H27: Vendor Received | M27: 10% Advance Payment/Delivered to vendor from H.O
A28: AQR/002/2018-19 | B28: 121683.31 | C28: 43489 | D28: =IF(E28=0,D27,IF(ISTEXT(D27),SUMPRODUCT(Table3[LC Value]*(Table3[DC NO:]=Table10003[[#This Row],[DC NO:]]))-B28,IF(_xlfn.IFNA(MATCH(E28,E27,0)=1,0),D27-B28,SUMPRODUCT(Table3[LC Value]*(Table3[DC NO:]=Table10003[[#This Row],[DC NO:]]))-B28))) -> 27106122.64 | E28: LC6478124567 | F28: =IFERROR(D28/SUMPRODUCT(Table3[LC Value]*(Table3[DC NO:]=Table10003[[#This Row],[DC NO:]])),"") -> 0.5088650106 | H28: Vendor Received | L28: 2019-03-03
A29: 0 | B29: 106122.64 | C29: 43486 | D29: =IF(E29=0,D28,IF(ISTEXT(D28),SUMPRODUCT(Table3[LC Value]*(Table3[DC NO:]=Table10003[[#This Row],[DC NO:]]))-B29,IF(_xlfn.IFNA(MATCH(E29,E28,0)=1,0),D28-B29,SUMPRODUCT(Table3[LC Value]*(Table3[DC NO:]=Table10003[[#This Row],[DC NO:]]))-B29))) -> 27000000 | E29: LC6478124567 | F29: =IFERROR(D29/SUMPRODUCT(Table3[LC Value]*(Table3[DC NO:]=Table10003[[#This Row],[DC NO:]])),"") -> 0.5068727634 | H29: Vendor Received | L29: 2019-01-20 | M29: Delivered to vendor from H.O
A30: AQR/003/2018-19 | B30: 141216.96 | C30: 43512 | D30: =IF(E30=0,D29,IF(ISTEXT(D29),SUMPRODUCT(Table3[LC Value]*(Table3[DC NO:]=Table10003[[#This Row],[DC NO:]]))-B30,IF(_xlfn.IFNA(MATCH(E30,E29,0)=1,0),D29-B30,SUMPRODUCT(Table3[LC Value]*(Table3[DC NO:]=Table10003[[#This Row],[DC NO:]]))-B30))) -> 26858783.04 | E30: LC6478124567 | F30: =IFERROR(D30/SUMPRODUCT(Table3[LC Value]*(Table3[DC NO:]=Table10003[[#This Row],[DC NO:]])),"") -> 0.5042216881 | H30: Vendor Received | L30: 2019-03-28
A31: AQR/004/2018-19 | B31: 926579.1899 | C31: 43545 | D31: =IF(E31=0,D30,IF(ISTEXT(D30),SUMPRODUCT(Table3[LC Value]*(Table3[DC NO:]=Table10003[[#This Row],[DC NO:]]))-B31,IF(_xlfn.IFNA(MATCH(E31,E30,0)=1,0),D30-B31,SUMPRODUCT(Table3[LC Value]*(Table3[DC NO:]=Table10003[[#This Row],[DC NO:]]))-B31))) -> 25932203.85 | E31: LC6478124567 | F31: =IFERROR(D31/SUMPRODUCT(Table3[LC Value]*(Table3[DC NO:]=Table10003[[#This Row],[DC NO:]])),"") -> 0.4868269565 | G31: 2019-04-29 | H31: Vendor Received | L31: 2019-05-18
A32: AQR/005/2018-19 | B32: 302950.55 | C32: 43613 | D32: =IF(E32=0,D31,IF(ISTEXT(D31),SUMPRODUCT(Table3[LC Value]*(Table3[DC NO:]=Table10003[[#This Row],[DC NO:]]))-B32,IF(_xlfn.IFNA(MATCH(E32,E31,0)=1,0),D31-B32,SUMPRODUCT(Table3[LC Value]*(Table3[DC NO:]=Table10003[[#This Row],[DC NO:]]))-B32))) -> 25629253.3 | E32: LC6478124567 | F32: =IFERROR(D32/SUMPRODUCT(Table3[LC Value]*(Table3[DC NO:]=Table10003[[#This Row],[DC NO:]])),"") -> 0.481139646 | G32: 2019-06-20 | H32: Vendor Received | I32: 2019-06-20 | L32: 2019-07-08
A33: AQR/006/2018-19 | B33: 299544.06 | C33: 43647 | D33: =IF(E33=0,D32,IF(ISTEXT(D32),SUMPRODUCT(Table3[LC Value]*(Table3[DC NO:]=Table10003[[#This Row],[DC NO:]]))-B33,IF(_xlfn.IFNA(MATCH(E33,E32,0)=1,0),D32-B33,SUMPRODUCT(Table3[LC Value]*(Table3[DC NO:]=Table10003[[#This Row],[DC NO:]]))-B33))) -> 25329709.24 | E33: LC6478124567 | F33: =IFERROR(D33/SUMPRODUCT(Table3[LC Value]*(Table3[DC NO:]=Table10003[[#This Row],[DC NO:]])),"") -> 0.4755162858 | G33: 2019-07-23 | H33: Vendor Received | I33: 2019-07-24
A34: AQR/007/2018-19 | B34: 2186434.53 | C34: 43678 | D34: =IF(E34=0,D33,IF(ISTEXT(D33),SUMPRODUCT(Table3[LC Value]*(Table3[DC NO:]=Table10003[[#This Row],[DC NO:]]))-B34,IF(_xlfn.IFNA(MATCH(E34,E33,0)=1,0),D33-B34,SUMPRODUCT(Table3[LC Value]*(Table3[DC NO:]=Table10003[[#This Row],[DC NO:]]))-B34))) -> 23143274.71 | E34: LC6478124567 | F34: =IFERROR(D34/SUMPRODUCT(Table3[LC Value]*(Table3[DC NO:]=Table10003[[#This Row],[DC NO:]])),"") -> 0.4344702076 | G34: 2019-08-03 | H34: Vendor Received | I34: 2019-08-03 | L34: 2019-08-19
A35: AQR/009/2018-19 | B35: 2946835.52 | C35: 43710 | D35: =IF(E35=0,D34,IF(ISTEXT(D34),SUMPRODUCT(Table3[LC Value]*(Table3[DC NO:]=Table10003[[#This Row],[DC NO:]]))-B35,IF(_xlfn.IFNA(MATCH(E35,E34,0)=1,0),D34-B35,SUMPRODUCT(Table3[LC Value]*(Table3[DC NO:]=Table10003[[#This Row],[DC NO:]]))-B35))) -> 20196439.19 | E35: LC6478124567 | F35: =IFERROR(D35/SUMPRODUCT(Table3[LC Value]*(Table3[DC NO:]=Table10003[[#This Row],[DC NO:]])),"") -> 0.3791490719 | H35: Vendor Received | L35: 2019-09-24
A36: AQR/010/2018-19 | B36: 315285.19 | C36: 43751 | D36: =IF(E36=0,D35,IF(ISTEXT(D35),SUMPRODUCT(Table3[LC Value]*(Table3[DC NO:]=Table10003[[#This Row],[DC NO:]]))-B36,IF(_xlfn.IFNA(MATCH(E36,E35,0)=1,0),D35-B36,SUMPRODUCT(Table3[LC Value]*(Table3[DC NO:]=Table10003[[#This Row],[DC NO:]]))-B36))) -> 19881154 | E36: LC6478124567 | F36: =IFERROR(D36/SUMPRODUCT(Table3[LC Value]*(Table3[DC NO:]=Table10003[[#This Row],[DC NO:]])),"") -> 0.3732302025 | G36: 2019-10-15 | H36: Vendor Received | L36: 2019-10-22
A37: AQR/011/2018-19 | B37: 2096760.99 | C37: 43800 | D37: =IF(E37=0,D36,IF(ISTEXT(D36),SUMPRODUCT(Table3[LC Value]*(Table3[DC NO:]=Table10003[[#This Row],[DC NO:]]))-B37,IF(_xlfn.IFNA(MATCH(E37,E36,0)=1,0),D36-B37,SUMPRODUCT(Table3[LC Value]*(Table3[DC NO:]=Table10003[[#This Row],[DC NO:]]))-B37))) -> 18903239.01 | E37: LC1452479645 | F37: =IFERROR(D37/SUMPRODUCT(Table3[LC Value]*(Table3[DC NO:]=Table10003[[#This Row],[DC NO:]])),"") -> 0.9001542386 | H37: Vendor Received | L37: 2019-12-03
A38: AQR/012/2018-19 | B38: 894474.63 | C38: 43803 | D38: =IF(E38=0,D37,IF(ISTEXT(D37),SUMPRODUCT(Table3[LC Value]*(Table3[DC NO:]=Table10003[[#This Row],[DC NO:]]))-B38,IF(_xlfn.IFNA(MATCH(E38,E37,0)=1,0),D37-B38,SUMPRODUCT(Table3[LC Value]*(Table3[DC NO:]=Table10003[[#This Row],[DC NO:]]))-B38))) -> 18008764.38 | E38: LC1452479645 | F38: =IFERROR(D38/SUMPRODUCT(Table3[LC Value]*(Table3[DC NO:]=Table10003[[#This Row],[DC NO:]])),"") -> 0.8575602086 | H38: Vendor Received | L38: 2019-12-05
A39: AQR/013/2018-19 | B39: 2602205.45 | C39: 43800 | D39: =IF(E39=0,D38,IF(ISTEXT(D38),SUMPRODUCT(Table3[LC Value]*(Table3[DC NO:]=Table10003[[#This Row],[DC NO:]]))-B39,IF(_xlfn.IFNA(MATCH(E39,E38,0)=1,0),D38-B39,SUMPRODUCT(Table3[LC Value]*(Table3[DC NO:]=Table10003[[#This Row],[DC NO:]]))-B39))) -> 15406558.93 | E39: LC1452479645 | F39: =IFERROR(D39/SUMPRODUCT(Table3[LC Value]*(Table3[DC NO:]=Table10003[[#This Row],[DC NO:]])),"") -> 0.7336456633 | G39: 2019-12-15 | H39: Vendor Received | I39: 2019-12-25 | L39: 2019-12-25
A40: AQR/014/2018-19 | B40: 635136.51 | C40: 2020-01-05 | D40: =IF(E40=0,D39,IF(ISTEXT(D39),SUMPRODUCT(Table3[LC Value]*(Table3[DC NO:]=Table10003[[#This Row],[DC NO:]]))-B40,IF(_xlfn.IFNA(MATCH(E40,E39,0)=1,0),D39-B40,SUMPRODUCT(Table3[LC Value]*(Table3[DC NO:]=Table10003[[#This Row],[DC NO:]]))-B40))) -> 14771422.42 | E40: LC1452479645 | F40: =IFERROR(D40/SUMPRODUCT(Table3[LC Value]*(Table3[DC NO:]=Table10003[[#This Row],[DC NO:]])),"") -> 0.7034010676 | G40: 2020-01-25 | H40: Vendor Received | L40: 2020-01-26
A41: AQR/015/2018-19 | B41: 3479092.93 | C41: 2020-02-17 | D41: =IF(E41=0,D40,IF(ISTEXT(D40),SUMPRODUCT(#REF!*(#REF!=#REF!))-B41,IF(_xlfn.IFNA(MATCH(E41,E40,0)=1,0),D40-B41,SUMPRODUCT(#REF!*(#REF!=#REF!))-B41))) -> 11292329.49 | E41: LC1452479645 | F41: =IFERROR(D41/SUMPRODUCT(Table3[LC Value]*(Table3[DC NO:]=Table10003[[#This Row],[DC NO:]])),"") -> 0.5377299757 | G41: 2020-02-18 | H41: Vendor Received | L41: 2020-02-20
A42: =SUBTOTAL(103,#REF!) ->  | B42: =SUBTOTAL(109,Table10003[LC invoices Value]) -> 43094322.46 | C42: Total | D42: =Table3[[#Totals],[LC Value]]-Table10003[[#Totals],[LC invoices Value]] -> 31173483.49 | F42: =INDEX(Table10003[Available Limit],MATCH(LOOKUP(2,1/(Table10003[Available Limit]<>""),Table10003[Available Limit]),Table10003[Available Limit],0),1) -> 0.5377299757
B43: =+SUMPRODUCT(Table10003[LC invoices Value]*(Table10003[DC NO:]=INDEX(Table10003[DC NO:],MATCH(LOOKUP(2,1/(Table10003[DC NO:]<>""),Table10003[DC NO:]),Table10003[DC NO:],0),1))) -> 9707670.51

Sheet 4
A1: 4 | H1: H | I1: =I2 -> 2020-03-31
B2: Beneficiary Number: | D2: 854693 | H2: G | I2: =TODAY() -> 2020-03-31
B3: Beneficiary Name: | D3: TECHNICAL WORKS CO
B4: اسم المستفيد | D4: شركة الفني للصناعات
B5: Scope | D5: Bars
B6: Vendor Type | D6: Supplier
B7: IBAN | D7: EG455212564643123213 | G7: Swift Code #
B8: Available with/by: | D8: CAIRO BANK
B9: Bank Address
A10: Ser. | B10: Status# | C10: Date OF Issue | D10: LC Expiry Date | E10: DC NO: | F10: Bank | G10: LC Value | H10: Goods | I10: Validity of Credit | J10: Drafts at: | K10: Present Date | L10: Documents Presented Date | M10: Documents Required | N10: EVIDENCING
A11: =+ROW()-10 -> 1 | B11: Open#1 | C11: 43221 | D11: 43313 | E11: LC3154789652 | F11: BBC | G11: 1185796.13 | H11: CPT/Applicant's Project Site, | I11: 60 | J11: 60 Days from Commercial Invoice Date | K11: 21 | L11: Within 21 Days from Applicant Authorized Sign. | M11: 1 Orig.Comm.Inv.+1 Copy 1 Orig. Deli. + 1 Copy | N11: Receipt of Goods In Good Order And Condition and Stating The Exact Delivery Date.
A12: 2 | B12: Extend Date#1/1 | C12: 43313 | D12: 43405 | E12: LC3154789652 | F12: BBC | G12: 0 | H12: CPT/Applicant's Project Site, | I12: 60 | J12: 60 Days from Commercial Invoice Date | K12: 21 | L12: Within 21 Days from Applicant Authorized Sign. | M12: 1 Orig.Comm.Inv.+1 Copy 1 Orig. Deli. + 1 Copy | N12: Receipt of Goods In Good Order And Condition and Stating The Exact Delivery Date.
A13: 3 | B13: Open#2 | C13: 43872 | D13: 43957 | E13: LC4578542136 | F13: BBC | G13: 629573.35 | H13: CPT/Applicant's Project Site, | I13: 60 | J13: 60 Days from Commercial Invoice Date | K13: 21 | L13: Within 21 Days from Applicant Authorized Sign. | M13: 1 Orig.Comm.Inv.+1 Copy 1 Orig. Deli. + 1 Copy | N13: Receipt of Goods In Good Order And Condition and Stating The Exact Delivery Date.
A14: 4
A15: 5
A16: 6
A17: 7
A18: =+ROW()-10 -> 8
A19: =+ROW()-10 -> 9
A20: =SUBTOTAL(103,Table4[Ser.]) -> 9 | B20: Total | G20: =SUBTOTAL(109,Table4[LC Value]) -> 1815369.48
G21: A/C No.900
B22: from | C22: to
B23: Presented with | C23: Validity of Credit | D23: LC Expiry Date after
B24: =INDEX(Table4[Present Date],MATCH(LOOKUP(2,1/(Table4[Present Date]<>""),Table4[Present Date]),Table4[Present Date],0),1) -> 21 | C24: =INDEX(Table4[Validity of Credit],MATCH(LOOKUP(2,1/(Table4[Validity of Credit]<>""),Table4[Validity of Credit]),Table4[Validity of Credit],0),1) -> 60 | D24: =INDEX(Table4[LC Expiry Date],MATCH(LOOKUP(2,1/(Table4[LC Expiry Date]<>""),Table4[LC Expiry Date]),Table4[LC Expiry Date],0),1)-TODAY() -> 36
B25: =C25-B24 -> 2020-03-26 | C25: =INDEX(Table10004[LC invoices Date],MATCH(LOOKUP(2,1/(Table10004[LC invoices Date]<>""),Table10004[LC invoices Date]),Table10004[LC invoices Date],0),1)+C24 -> 2020-04-16 | D25: =INDEX(Table4[LC Expiry Date],MATCH(LOOKUP(2,1/(Table4[LC Expiry Date]<>""),Table4[LC Expiry Date]),Table4[LC Expiry Date],0),1) -> 2020-05-06
A26: Inv.# | B26: LC invoices Value | C26: LC invoices Date | D26: LC Balance | E26: DC NO: | F26: Available Limit | G26: JARP/ Received Date | H26: LC Status | I26: Sent/H.O. | J26: Received/H.O | K26: Returned/H.O. | L26: Beneficiary/Received | M26: Remarks
A27: 22062018-01 | B27: 532619.37 | C27: 43273 | D27: =IF(E27=0,D26,IF(ISTEXT(D26),SUMPRODUCT(Table4[LC Value]*(Table4[DC NO:]=Table10004[[#This Row],[DC NO:]]))-B27,IF(_xlfn.IFNA(MATCH(E27,E26,0)=1,0),D26-B27,SUMPRODUCT(Table4[LC Value]*(Table4[DC NO:]=Table10004[[#This Row],[DC NO:]]))-B27))) -> 653176.76 | E27: LC3154789652 | F27: =IFERROR(D27/SUMPRODUCT(Table4[LC Value]*(Table4[DC NO:]=Table10004[[#This Row],[DC NO:]])),"") -> 0.5508339448 | H27: Vendor Received | L27: 2018-10-03
A28: 16022020-01 | B28: 596264.09 | C28: 43877 | D28: =IF(E28=0,D27,IF(ISTEXT(D27),SUMPRODUCT(Table4[LC Value]*(Table4[DC NO:]=Table10004[[#This Row],[DC NO:]]))-B28,IF(_xlfn.IFNA(MATCH(E28,E27,0)=1,0),D27-B28,SUMPRODUCT(Table4[LC Value]*(Table4[DC NO:]=Table10004[[#This Row],[DC NO:]]))-B28))) -> 33309.26 | E28: LC4578542136 | F28: =IFERROR(D28/SUMPRODUCT(Table4[LC Value]*(Table4[DC NO:]=Table10004[[#This Row],[DC NO:]])),"") -> 0.05290767152 | G28: 2020-02-19 | H28: Vendor Received | L28: 2020-02-19
D29: =IF(E29=0,D28,IF(ISTEXT(D28),SUMPRODUCT(Table4[LC Value]*(Table4[DC NO:]=Table10004[[#This Row],[DC NO:]]))-B29,IF(_xlfn.IFNA(MATCH(E29,E28,0)=1,0),D28-B29,SUMPRODUCT(Table4[LC Value]*(Table4[DC NO:]=Table10004[[#This Row],[DC NO:]]))-B29))) -> 33309.26 | F29: =IFERROR(D29/SUMPRODUCT(Table4[LC Value]*(Table4[DC NO:]=Table10004[[#This Row],[DC NO:]])),"") -> 
D30: =IF(E30=0,D29,IF(ISTEXT(D29),SUMPRODUCT(Table4[LC Value]*(Table4[DC NO:]=Table10004[[#This Row],[DC NO:]]))-B30,IF(_xlfn.IFNA(MATCH(E30,E29,0)=1,0),D29-B30,SUMPRODUCT(Table4[LC Value]*(Table4[DC NO:]=Table10004[[#This Row],[DC NO:]]))-B30))) -> 33309.26 | F30: =IFERROR(D30/SUMPRODUCT(Table4[LC Value]*(Table4[DC NO:]=Table10004[[#This Row],[DC NO:]])),"") -> 
D31: =IF(E31=0,D30,IF(ISTEXT(D30),SUMPRODUCT(Table4[LC Value]*(Table4[DC NO:]=Table10004[[#This Row],[DC NO:]]))-B31,IF(_xlfn.IFNA(MATCH(E31,E30,0)=1,0),D30-B31,SUMPRODUCT(Table4[LC Value]*(Table4[DC NO:]=Table10004[[#This Row],[DC NO:]]))-B31))) -> 33309.26 | F31: =IFERROR(D31/SUMPRODUCT(Table4[LC Value]*(Table4[DC NO:]=Table10004[[#This Row],[DC NO:]])),"") -> 
D32: =IF(E32=0,D31,IF(ISTEXT(D31),SUMPRODUCT(Table4[LC Value]*(Table4[DC NO:]=Table10004[[#This Row],[DC NO:]]))-B32,IF(_xlfn.IFNA(MATCH(E32,E31,0)=1,0),D31-B32,SUMPRODUCT(Table4[LC Value]*(Table4[DC NO:]=Table10004[[#This Row],[DC NO:]]))-B32))) -> 33309.26 | F32: =IFERROR(D32/SUMPRODUCT(Table4[LC Value]*(Table4[DC NO:]=Table10004[[#This Row],[DC NO:]])),"") -> 
D33: =IF(E33=0,D32,IF(ISTEXT(D32),SUMPRODUCT(Table4[LC Value]*(Table4[DC NO:]=Table10004[[#This Row],[DC NO:]]))-B33,IF(_xlfn.IFNA(MATCH(E33,E32,0)=1,0),D32-B33,SUMPRODUCT(Table4[LC Value]*(Table4[DC NO:]=Table10004[[#This Row],[DC NO:]]))-B33))) -> 33309.26 | F33: =IFERROR(D33/SUMPRODUCT(Table4[LC Value]*(Table4[DC NO:]=Table10004[[#This Row],[DC NO:]])),"") -> 
D34: =IF(E34=0,D33,IF(ISTEXT(D33),SUMPRODUCT(Table4[LC Value]*(Table4[DC NO:]=Table10004[[#This Row],[DC NO:]]))-B34,IF(_xlfn.IFNA(MATCH(E34,E33,0)=1,0),D33-B34,SUMPRODUCT(Table4[LC Value]*(Table4[DC NO:]=Table10004[[#This Row],[DC NO:]]))-B34))) -> 33309.26 | F34: =IFERROR(D34/SUMPRODUCT(Table4[LC Value]*(Table4[DC NO:]=Table10004[[#This Row],[DC NO:]])),"") -> 
D35: =IF(E35=0,D34,IF(ISTEXT(D34),SUMPRODUCT(Table4[LC Value]*(Table4[DC NO:]=Table10004[[#This Row],[DC NO:]]))-B35,IF(_xlfn.IFNA(MATCH(E35,E34,0)=1,0),D34-B35,SUMPRODUCT(Table4[LC Value]*(Table4[DC NO:]=Table10004[[#This Row],[DC NO:]]))-B35))) -> 33309.26 | F35: =IFERROR(D35/SUMPRODUCT(Table4[LC Value]*(Table4[DC NO:]=Table10004[[#This Row],[DC NO:]])),"") -> 
D36: =IF(E36=0,D35,IF(ISTEXT(D35),SUMPRODUCT(Table4[LC Value]*(Table4[DC NO:]=Table10004[[#This Row],[DC NO:]]))-B36,IF(_xlfn.IFNA(MATCH(E36,E35,0)=1,0),D35-B36,SUMPRODUCT(Table4[LC Value]*(Table4[DC NO:]=Table10004[[#This Row],[DC NO:]]))-B36))) -> 33309.26 | F36: =IFERROR(D36/SUMPRODUCT(Table4[LC Value]*(Table4[DC NO:]=Table10004[[#This Row],[DC NO:]])),"") -> 
A37: =SUBTOTAL(103,Table10004[Inv.'#]) -> 2 | B37: =SUBTOTAL(109,Table10004[LC invoices Value]) -> 1128883.46 | C37: Total | D37: =Table4[[#Totals],[LC Value]]-Table10004[[#Totals],[LC invoices Value]] -> 686486.02 | F37: =INDEX(Table10004[Available Limit],MATCH(LOOKUP(2,1/(Table10004[Available Limit]<>""),Table10004[Available Limit]),Table10004[Available Limit],0),1) -> 0.05290767152
B38: =+SUMPRODUCT(Table10004[LC invoices Value]*(Table10004[DC NO:]=INDEX(Table10004[DC NO:],MATCH(LOOKUP(2,1/(Table10004[DC NO:]<>""),Table10004[DC NO:]),Table10004[DC NO:],0),1))) -> 596264.09

Sheet 5
A1: 5 | H1: H | I1: =I2 -> 2020-03-31
B2: Beneficiary Number: | D2: 458216 | H2: G | I2: =TODAY() -> 2020-03-31
B3: Beneficiary Name: | D3: P&L CO.
B4: اسم المستفيد | D4: شركة بي & ال
B5: Scope | D5: Diff. Materials.
B6: Vendor Type | D6: Subcontractor
B7: IBAN | D7: EG84695123456799613 | G7: Swift Code #
B8: Available with/by: | D8: AFRIQY BANK
B9: Bank Address
A10: Ser. | B10: Status# | C10: Date OF Issue | D10: LC Expiry Date | E10: DC NO: | F10: Bank | G10: LC Value | H10: Goods | I10: Validity of Credit | J10: Drafts at: | K10: Present Date | L10: Documents Presented Date | M10: Documents Required | N10: EVIDENCING
A11: =+ROW()-10 -> 1 | B11: Open#1 | C11: 43368 | D11: 43526 | E11: LC1234567890 | F11: BBC | G11: 4365900 | H11: CPT/Applicant's Project Site, | I11: 60 | J11: 60 Days from delivery Date | K11: 21 | L11: Within 21 Days from Applicant Authorized Sign. | M11: 1 Orig.Comm.Inv.+1 Copy 1 Orig. Deli. + 1 Copy | N11: Receipt of Goods In Good Order And Condition and Stating The Exact Delivery Date.
A12: 2 | B12: Extend Date#1/1 | C12: 43515 | D12: 43618 | E12: LC1234567890 | F12: BBC | G12: 0 | H12: CPT/Applicant's Project Site, | I12: 60 | J12: 60 Days from delivery Date | K12: 21 | L12: Within 21 Days from Applicant Authorized Sign. | M12: 1 Orig.Comm.Inv.+1 Copy 1 Orig. Deli. + 1 Copy | N12: Receipt of Goods In Good Order And Condition and Stating The Exact Delivery Date.
A13: 3 | B13: Extend Date#2/1 | C13: 43619 | D13: 43710 | E13: LC1234567890 | F13: BBC | G13: -1500000 | H13: CPT/Applicant's Project Site, | I13: 60 | J13: 60 Days from delivery Date | K13: 21 | L13: Within 21 Days from Applicant Authorized Sign. | M13: 1 Orig.Comm.Inv.+1 Copy 1 Orig. Deli. + 1 Copy | N13: Receipt of Goods In Good Order And Condition and Stating The Exact Delivery Date.
A14: 4
A15: 5
A16: 6
A17: 7
A18: =+ROW()-10 -> 8
A19: =+ROW()-10 -> 9
A20: =SUBTOTAL(103,Table5[Ser.]) -> 9 | B20: Total | G20: =SUBTOTAL(109,Table5[LC Value]) -> 2865900
G21: A/C No.900
B22: from | C22: to
B23: Presented with | C23: Validity of Credit | D23: LC Expiry Date after
B24: =INDEX(Table5[Present Date],MATCH(LOOKUP(2,1/(Table5[Present Date]<>""),Table5[Present Date]),Table5[Present Date],0),1) -> 21 | C24: =INDEX(Table5[Validity of Credit],MATCH(LOOKUP(2,1/(Table5[Validity of Credit]<>""),Table5[Validity of Credit]),Table5[Validity of Credit],0),1) -> 60 | D24: =INDEX(Table5[LC Expiry Date],MATCH(LOOKUP(2,1/(Table5[LC Expiry Date]<>""),Table5[LC Expiry Date]),Table5[LC Expiry Date],0),1)-TODAY() -> -211
B25: =C25-B24 -> 2019-08-30 | C25: =INDEX(Table10005[LC invoices Date],MATCH(LOOKUP(2,1/(Table10005[LC invoices Date]<>""),Table10005[LC invoices Date]),Table10005[LC invoices Date],0),1)+C24 -> 2019-09-20 | D25: =INDEX(Table5[LC Expiry Date],MATCH(LOOKUP(2,1/(Table5[LC Expiry Date]<>""),Table5[LC Expiry Date]),Table5[LC Expiry Date],0),1) -> 2019-09-02
A26: Inv.# | B26: LC invoices Value | C26: LC invoices Date | D26: LC Balance | E26: DC NO: | F26: Available Limit | G26: JARP/ Received Date | H26: LC Status | I26: Sent/H.O. | J26: Received/H.O | K26: Returned/H.O. | L26: Beneficiary/Received | M26: Remarks
A27: 0 | B27: 1052655.49 | C27: 43391 | D27: =IF(E27=0,D26,IF(ISTEXT(D26),SUMPRODUCT(Table5[LC Value]*(Table5[DC NO:]=Table10005[[#This Row],[DC NO:]]))-B27,IF(_xlfn.IFNA(MATCH(E27,E26,0)=1,0),D26-B27,SUMPRODUCT(Table5[LC Value]*(Table5[DC NO:]=Table10005[[#This Row],[DC NO:]]))-B27))) -> 1813244.51 | E27: LC1234567890 | F27: =IFERROR(D27/SUMPRODUCT(Table5[LC Value]*(Table5[DC NO:]=Table10005[[#This Row],[DC NO:]])),"") -> 0.6326963641 | H27: Vendor Received | L27: 2018-11-21
A28: 201800011 | B28: 108868.86 | C28: 43464 | D28: =IF(E28=0,D27,IF(ISTEXT(D27),SUMPRODUCT(Table5[LC Value]*(Table5[DC NO:]=Table10005[[#This Row],[DC NO:]]))-B28,IF(_xlfn.IFNA(MATCH(E28,E27,0)=1,0),D27-B28,SUMPRODUCT(Table5[LC Value]*(Table5[DC NO:]=Table10005[[#This Row],[DC NO:]]))-B28))) -> 1704375.65 | E28: LC1234567890 | F28: =IFERROR(D28/SUMPRODUCT(Table5[LC Value]*(Table5[DC NO:]=Table10005[[#This Row],[DC NO:]])),"") -> 0.5947086953 | H28: Vendor Received | L28: 2019-02-10
A29: 201800095 | B29: 80987.06 | C29: 43538 | D29: =IF(E29=0,D28,IF(ISTEXT(D28),SUMPRODUCT(Table5[LC Value]*(Table5[DC NO:]=Table10005[[#This Row],[DC NO:]]))-B29,IF(_xlfn.IFNA(MATCH(E29,E28,0)=1,0),D28-B29,SUMPRODUCT(Table5[LC Value]*(Table5[DC NO:]=Table10005[[#This Row],[DC NO:]]))-B29))) -> 1623388.59 | E29: LC1234567890 | F29: =IFERROR(D29/SUMPRODUCT(Table5[LC Value]*(Table5[DC NO:]=Table10005[[#This Row],[DC NO:]])),"") -> 0.5664498377 | H29: Vendor Received | L29: 2019-04-02
A30: 201900009 | B30: 73113.32 | C30: 43563 | D30: =IF(E30=0,D29,IF(ISTEXT(D29),SUMPRODUCT(Table5[LC Value]*(Table5[DC NO:]=Table10005[[#This Row],[DC NO:]]))-B30,IF(_xlfn.IFNA(MATCH(E30,E29,0)=1,0),D29-B30,SUMPRODUCT(Table5[LC Value]*(Table5[DC NO:]=Table10005[[#This Row],[DC NO:]]))-B30))) -> 1550275.27 | E30: LC1234567890 | F30: =IFERROR(D30/SUMPRODUCT(Table5[LC Value]*(Table5[DC NO:]=Table10005[[#This Row],[DC NO:]])),"") -> 0.5409383684 | G30: 2019-04-09 | H30: Vendor Received | I30: 2019-04-09 | K30: 2019-04-29 | L30: 2019-05-02
A31: 201900014 | B31: 92688.31 | C31: 43586 | D31: =IF(E31=0,D30,IF(ISTEXT(D30),SUMPRODUCT(Table5[LC Value]*(Table5[DC NO:]=Table10005[[#This Row],[DC NO:]]))-B31,IF(_xlfn.IFNA(MATCH(E31,E30,0)=1,0),D30-B31,SUMPRODUCT(Table5[LC Value]*(Table5[DC NO:]=Table10005[[#This Row],[DC NO:]]))-B31))) -> 1457586.96 | E31: LC1234567890 | F31: =IFERROR(D31/SUMPRODUCT(Table5[LC Value]*(Table5[DC NO:]=Table10005[[#This Row],[DC NO:]])),"") -> 0.5085965875 | G31: 2019-05-19 | H31: Vendor Received | I31: 2019-05-20 | L31: 2019-06-18
A32: 201900019 | B32: 124394.44 | C32: 43626 | D32: =IF(E32=0,D31,IF(ISTEXT(D31),SUMPRODUCT(Table5[LC Value]*(Table5[DC NO:]=Table10005[[#This Row],[DC NO:]]))-B32,IF(_xlfn.IFNA(MATCH(E32,E31,0)=1,0),D31-B32,SUMPRODUCT(Table5[LC Value]*(Table5[DC NO:]=Table10005[[#This Row],[DC NO:]]))-B32))) -> 1333192.52 | E32: LC1234567890 | F32: =IFERROR(D32/SUMPRODUCT(Table5[LC Value]*(Table5[DC NO:]=Table10005[[#This Row],[DC NO:]])),"") -> 0.4651915698 | G32: 2019-06-18 | H32: Vendor Received | I32: 2019-06-18 | K32: 2019-07-01 | L32: 2019-07-02
A33: 201900030 | B33: 42436.25 | C33: 43648 | D33: =IF(E33=0,D32,IF(ISTEXT(D32),SUMPRODUCT(Table5[LC Value]*(Table5[DC NO:]=Table10005[[#This Row],[DC NO:]]))-B33,IF(_xlfn.IFNA(MATCH(E33,E32,0)=1,0),D32-B33,SUMPRODUCT(Table5[LC Value]*(Table5[DC NO:]=Table10005[[#This Row],[DC NO:]]))-B33))) -> 1290756.27 | E33: LC1234567890 | F33: =IFERROR(D33/SUMPRODUCT(Table5[LC Value]*(Table5[DC NO:]=Table10005[[#This Row],[DC NO:]])),"") -> 0.4503842667 | G33: 2019-07-09 | H33: Vendor Received | L33: 2019-08-05
A34: 201900031 | B34: 141587.67 | C34: 43668 | D34: =IF(E34=0,D33,IF(ISTEXT(D33),SUMPRODUCT(Table5[LC Value]*(Table5[DC NO:]=Table10005[[#This Row],[DC NO:]]))-B34,IF(_xlfn.IFNA(MATCH(E34,E33,0)=1,0),D33-B34,SUMPRODUCT(Table5[LC Value]*(Table5[DC NO:]=Table10005[[#This Row],[DC NO:]]))-B34))) -> 1149168.6 | E34: LC1234567890 | F34: =IFERROR(D34/SUMPRODUCT(Table5[LC Value]*(Table5[DC NO:]=Table10005[[#This Row],[DC NO:]])),"") -> 0.4009800063 | G34: 2019-08-05 | H34: Vendor Received | I34: 2019-08-06 | L34: 2019-09-07
D35: =IF(E35=0,D34,IF(ISTEXT(D34),SUMPRODUCT(Table5[LC Value]*(Table5[DC NO:]=Table10005[[#This Row],[DC NO:]]))-B35,IF(_xlfn.IFNA(MATCH(E35,E34,0)=1,0),D34-B35,SUMPRODUCT(Table5[LC Value]*(Table5[DC NO:]=Table10005[[#This Row],[DC NO:]]))-B35))) -> 1149168.6 | F35: =IFERROR(D35/SUMPRODUCT(Table5[LC Value]*(Table5[DC NO:]=Table10005[[#This Row],[DC NO:]])),"") -> 
D36: =IF(E36=0,D35,IF(ISTEXT(D35),SUMPRODUCT(Table5[LC Value]*(Table5[DC NO:]=Table10005[[#This Row],[DC NO:]]))-B36,IF(_xlfn.IFNA(MATCH(E36,E35,0)=1,0),D35-B36,SUMPRODUCT(Table5[LC Value]*(Table5[DC NO:]=Table10005[[#This Row],[DC NO:]]))-B36))) -> 1149168.6 | F36: =IFERROR(D36/SUMPRODUCT(Table5[LC Value]*(Table5[DC NO:]=Table10005[[#This Row],[DC NO:]])),"") -> 
A37: =SUBTOTAL(103,Table10005[Inv.'#]) -> 8 | B37: =SUBTOTAL(109,Table10005[LC invoices Value]) -> 1716731.4 | C37: Total | D37: =Table5[[#Totals],[LC Value]]-Table10005[[#Totals],[LC invoices Value]] -> 1149168.6 | F37: =INDEX(Table10005[Available Limit],MATCH(LOOKUP(2,1/(Table10005[Available Limit]<>""),Table10005[Available Limit]),Table10005[Available Limit],0),1) -> 0.4009800063
B38: =+SUMPRODUCT(Table10005[LC invoices Value]*(Table10005[DC NO:]=INDEX(Table10005[DC NO:],MATCH(LOOKUP(2,1/(Table10005[DC NO:]<>""),Table10005[DC NO:]),Table10005[DC NO:],0),1))) -> 1716731.4
